College_Name,Check_Number,Payee,Date,Amount,Funding_Source,Purpose
Jefferson State CC,512876,Aramark Uniform & Career Apparel Group Inc. ,10/6/2021,68.41,Unrestricted Shelby Campus,Materials and Supplies - MS
Jefferson State CC,512877,Atlas Welding Supply Co. Inc. ,10/6/2021,6232.65,Unrestricted Shelby Campus,Materials and Supplies - MS
Jefferson State CC,512878,Blue Ridge X-Ray Company Inc. ,10/6/2021,2390,Unrestricted Shelby Campus,Service Contracts on Equipment -OOS
Jefferson State CC,512879,Call Jacob,10/6/2021,1789.56,Unrestricted Shared Services,Commercial Transportation - OS
Jefferson State CC,512879,Call Jacob,10/6/2021,248.5,Unrestricted Shared Services,Conus (meals) - OS
Jefferson State CC,512879,Call Jacob,10/6/2021,2499.94,Unrestricted Shared Services,Lodging - IS
Jefferson State CC,512879,Call Jacob,10/6/2021,1736.34,Unrestricted Shared Services,Lodging - OS
Jefferson State CC,512879,Call Jacob,10/6/2021,1236.57,Unrestricted Shared Services,Mileage - IS
Jefferson State CC,512879,Call Jacob,10/6/2021,315.81,Unrestricted Shared Services,Other Travel Expenses - IS
Jefferson State CC,512879,Call Jacob,10/6/2021,56.14,Unrestricted Shared Services,Other Travel Expenses - OS
Jefferson State CC,512879,Call Jacob,10/6/2021,300,Unrestricted Shared Services,Overnight (non tax per diem)- IS
Jefferson State CC,512880,CDW Government Inc ,10/6/2021,2139.5,Unrestricted Shared Services,Technology - non capitalized - MS
Jefferson State CC,512881,Central Paper Co Inc ,10/6/2021,20.14,Unrestricted Shelby Campus,Materials and Supplies - MS
Jefferson State CC,512882,CenturyTel of Alabama ,10/6/2021,202.98,Unrestricted St. Clair Campus,Landline Phones - UC
Jefferson State CC,512883,Evans Meats Inc ,10/6/2021,439.11,Unrestricted Shelby Campus,Culinary Consumables
Jefferson State CC,512884,Global Fire Sprinklers LLC ,10/6/2021,225,R&R Jefferson Campus ,Maintenance & Repairs  - OOS
Jefferson State CC,512885,Home Depot U.S.A. Inc ,10/6/2021,20108.3,R&R Jefferson Campus ,Maintenance & Repairs  - OOS
Jefferson State CC,512885,Home Depot U.S.A. Inc ,10/6/2021,2885.98,Unrestricted Jefferson Campus,Materials and Supplies - MS
Jefferson State CC,512886,Home Depot U.S.A. Inc ,10/6/2021,4780,Unrestricted Jefferson Campus,Materials and Supplies - MS
Jefferson State CC,512887,Home Depot U.S.A. Inc. ,10/6/2021,182.67,R&R Jefferson Campus ,Maintenance & Repairs  - OOS
Jefferson State CC,512887,Home Depot U.S.A. Inc. ,10/6/2021,278.95,Unrestricted Jefferson Campus,Maintenance & Repairs  - OOS
Jefferson State CC,512888,LeBlanc Vanessa,10/6/2021,186.8,Unrestricted Shelby Campus,Commercial Transportation - OS
Jefferson State CC,512888,LeBlanc Vanessa,10/6/2021,156,Unrestricted Shelby Campus,Conus (meals) - OS
Jefferson State CC,512888,LeBlanc Vanessa,10/6/2021,307.06,Unrestricted Shelby Campus,Lodging - OS
Jefferson State CC,512889,M-POWER Ministries ,10/6/2021,2999.04,Spcl Pops Ind Training 2XX0-2XX1,Other Contractual Services - PS
Jefferson State CC,512890,Morris David,10/6/2021,280,Unrestricted Shared Services,Mileage - IS
Jefferson State CC,512891,Office Depot ,10/6/2021,761.44,CRRSAA - HEERF II Institutional,Materials and Supplies - MS
Jefferson State CC,512891,Office Depot ,10/6/2021,169.16,DHR Childcare 2XX0-2XX1,Materials and Supplies - MS
Jefferson State CC,512891,Office Depot ,10/6/2021,479.23,Unrestricted Chilton Campus,Materials and Supplies - MS
Jefferson State CC,512891,Office Depot ,10/6/2021,571.16,Unrestricted Jefferson Campus,Materials and Supplies - MS
Jefferson State CC,512891,Office Depot ,10/6/2021,1138.15,Unrestricted Shared Services,Materials and Supplies - MS
Jefferson State CC,512891,Office Depot ,10/6/2021,934.94,Unrestricted Shelby Campus,Materials and Supplies - MS
Jefferson State CC,512891,Office Depot ,10/6/2021,514.91,Unrestricted St. Clair Campus,Materials and Supplies - MS
Jefferson State CC,512891,Office Depot ,10/6/2021,99.9,Unrestricted Shared Services,Technology - non capitalized - MS
Jefferson State CC,512892,Pritchard Industries Southeast LLC ,10/6/2021,3180,Unrestricted Jefferson Campus,Maintenance & Repairs  - OOS
Jefferson State CC,512892,Pritchard Industries Southeast LLC ,10/6/2021,3600,Unrestricted St. Clair Campus,Maintenance & Repairs  - OOS
Jefferson State CC,512893,Publix Super Markets Inc ,10/6/2021,164.04,Unrestricted Shelby Campus,Materials and Supplies - MS
Jefferson State CC,512894,Regional Produce Distributors LLC ,10/6/2021,343.85,Unrestricted Shelby Campus,Culinary Consumables
Jefferson State CC,512895,RJ Young Company ,10/6/2021,140.71,Unrestricted Jefferson Campus,Printing and Binding - OOS
Jefferson State CC,512895,RJ Young Company ,10/6/2021,421.25,Unrestricted Shared Services,Printing and Binding - OOS
Jefferson State CC,512896,S & S Automotive LLC ,10/6/2021,391.04,R&R Jefferson Campus ,Maintenance & Repairs  - OOS
Jefferson State CC,512897,Sherwin Williams Company ,10/6/2021,801.32,R&R Jefferson Campus ,Materials and Supplies - MS
Jefferson State CC,512898,Shuffett Wendy,10/6/2021,72.58,Unrestricted Shared Services,Mileage - IS
Jefferson State CC,512899,Southern Association for Institutional Research ,10/6/2021,650,Unrestricted Shared Services,Registration Fees- OS
Jefferson State CC,512900,Southern Cleaning Service Inc. / SCSI ,10/6/2021,8500,Unrestricted Shelby Campus,Maintenance & Repairs  - OOS
Jefferson State CC,512901,Spire Alabama Inc. ,10/6/2021,8562.06,Unrestricted Chilton Campus,Gas & Heating Fuel - UC
Jefferson State CC,512901,Spire Alabama Inc. ,10/6/2021,14973.33,Unrestricted Jefferson Campus,Gas & Heating Fuel - UC
Jefferson State CC,512901,Spire Alabama Inc. ,10/6/2021,5061.74,Unrestricted Shelby Campus,Gas & Heating Fuel - UC
Jefferson State CC,512901,Spire Alabama Inc. ,10/6/2021,33,Unrestricted St. Clair Campus,Gas & Heating Fuel - UC
Jefferson State CC,512902,Stevens Qianna,10/6/2021,73.36,Unrestricted Shared Services,Mileage - IS
Jefferson State CC,512903,US Foods Inc. ,10/6/2021,213.35,Unrestricted Shelby Campus,Culinary Consumables
Jefferson State CC,512904,Water Works & Sewer Board ,10/6/2021,700.25,Unrestricted Jefferson Campus,Water & Sewer - UC
Jefferson State CC,512904,Water Works & Sewer Board ,10/6/2021,3163.59,Unrestricted Shelby Campus,Water & Sewer - UC
Jefferson State CC,512905,Williams Sonja,10/6/2021,137.98,Unrestricted Shared Services,Mileage - IS
Jefferson State CC,512928,Alabama Restaurant and Hospitality Alliance Inc ,10/8/2021,250,Unrestricted Shelby Campus,Memberships - PS
Jefferson State CC,512929,Alexander Zachary,10/8/2021,266,Unrestricted Distance Ed,Mileage - IS
Jefferson State CC,512930,Bent Brook Management LLC ,10/8/2021,8550,Unrestricted Shared Services,Other Professional Fees - PS
Jefferson State CC,512931,Blevins Chris,10/8/2021,290,Unrestricted Shelby Campus,Other Professional Fees - PS
Jefferson State CC,512932,Bobo David,10/8/2021,92.5,Unrestricted Shared Services,Conus (meals) - IS
Jefferson State CC,512932,Bobo David,10/8/2021,395.5,Unrestricted Shared Services,Lodging - IS
Jefferson State CC,512932,Bobo David,10/8/2021,308,Unrestricted Shared Services,Mileage - IS
Jefferson State CC,512933,Bolton Christie,10/8/2021,45.36,Unrestricted Shelby Campus,Mileage - IS
Jefferson State CC,512934,Boyer Katherine,10/8/2021,154.92,Sigma Kappa Delta,Deposit Liabilities - AP
Jefferson State CC,512936,City of Pell City ,10/8/2021,355.21,Unrestricted St. Clair Campus,Water & Sewer - UC
Jefferson State CC,512937,Clackley David,10/8/2021,486,Unrestricted Chilton Campus,Other Professional Fees - PS
Jefferson State CC,512938,Credentials Solutions LLC ,10/8/2021,1341.15,Unrestricted Shared Services,Technology - non capitalized - MS
Jefferson State CC,512939,Creel Sarah,10/8/2021,33.6,Unrestricted Shelby Campus,Mileage - IS
Jefferson State CC,512940,Davens Ceramic Center ,10/8/2021,2355.35,CRRSAA - HEERF II Institutional,Equipment - non capitalized - MS
Jefferson State CC,512941,Dawkins Stephen,10/8/2021,92.5,Unrestricted Shared Services,Conus (meals) - IS
Jefferson State CC,512941,Dawkins Stephen,10/8/2021,395.5,Unrestricted Shared Services,Lodging - IS
Jefferson State CC,512941,Dawkins Stephen,10/8/2021,308,Unrestricted Shared Services,Mileage - IS
Jefferson State CC,512942,Dehart Michael,10/8/2021,640,Unrestricted Shelby Campus,Other Professional Fees - PS
Jefferson State CC,512943,Ennis Jzyk,10/8/2021,66.01,Unrestricted Shared Services,Mileage - IS
Jefferson State CC,512944,Fennell Tapeka,10/8/2021,205.85,Unrestricted Shared Services,Mileage - IS
Jefferson State CC,512945,Ferguson Lydia,10/8/2021,57.68,Unrestricted Shelby Campus,Mileage - IS
Jefferson State CC,512946,Fisher Scientific ,10/8/2021,22787.44,CRRSAA - HEERF II Institutional,Equipment - non capitalized - MS
Jefferson State CC,512946,Fisher Scientific ,10/8/2021,13552,CRRSAA - HEERF II Institutional,Furniture and Equip $5K - $25K - CE
Jefferson State CC,512946,Fisher Scientific ,10/8/2021,15026.26,CRRSAA - HEERF II Institutional,Materials and Supplies - MS
Jefferson State CC,512947,Florence Jeffrey,10/8/2021,390,Unrestricted Shelby Campus,Other Professional Fees - PS
Jefferson State CC,512949,Harland Technology Services ,10/8/2021,914,Unrestricted Chilton Campus,Service Contracts on Equipment -OOS
Jefferson State CC,512950,Harris Jason,10/8/2021,279,Unrestricted Chilton Campus,Other Professional Fees - PS
Jefferson State CC,512951,Harris Liesl,10/8/2021,65,PTK Honor Society Grant,Materials and Supplies - MS
Jefferson State CC,512952,Heritage Christopher,10/8/2021,801,Unrestricted Chilton Campus,Other Professional Fees - PS
Jefferson State CC,512953,Hill Candance,10/8/2021,117.2,Unrestricted Jefferson Campus,Materials and Supplies - MS
Jefferson State CC,512953,Hill Candance,10/8/2021,62.72,Unrestricted Jefferson Campus,Mileage - IS
Jefferson State CC,512954,Hopkins Seantel,10/8/2021,64.97,Unrestricted Shared Services,Materials and Supplies - MS
Jefferson State CC,512955,Jackson Todd,10/8/2021,44.25,Unrestricted Shelby Campus,Professional Development - PS
Jefferson State CC,512956,Janousek Mel,10/8/2021,230,Unrestricted Shelby Campus,Other Professional Fees - PS
Jefferson State CC,512958,Kelley Pamela,10/8/2021,689.36,Unrestricted Shared Services,Mileage - IS
Jefferson State CC,512959,Kitchens Lauren,10/8/2021,182.32,Sigma Kappa Delta,Deposit Liabilities - AP
Jefferson State CC,512960,Landauer Inc ,10/8/2021,1543.35,RAD Monitoring,Deposit Liabilities - AP
Jefferson State CC,512961,LeBlanc Vanessa,10/8/2021,540,Unrestricted Shelby Campus,Memberships - PS
Jefferson State CC,512962,Moten Roddrekus,10/8/2021,459,Unrestricted Chilton Campus,Other Professional Fees - PS
Jefferson State CC,512963,Mullins William,10/8/2021,400,Unrestricted Shelby Campus,Other Professional Fees - PS
Jefferson State CC,512968,Oil Equipment Co. Inc. ,10/8/2021,269,R&R Jefferson Campus ,Other Professional Fees - PS
Jefferson State CC,512969,Opportunity Systems Incorporating Independence LLC ,10/8/2021,928.8,Unrestricted Shared Services,Other Contractual Services - PS
Jefferson State CC,512970,Pipl Inc. ,10/8/2021,4791.84,Unrestricted Shared Services,Technology - non capitalized - MS
Jefferson State CC,512971,Pitney Bowes ,10/8/2021,694.41,Unrestricted Shared Services,Materials and Supplies - MS
Jefferson State CC,512972,Pocket Nurse Enterprises Inc. ,10/8/2021,10226.22,CRRSAA - HEERF II Institutional,Furniture and Equip $5K - $25K - CE
Jefferson State CC,512974,Respondus ,10/8/2021,9645,Unrestricted Distance Ed,Technology - non capitalized - MS
Jefferson State CC,512975,Scarbrough William,10/8/2021,225,Unrestricted Chilton Campus,Other Professional Fees - PS
Jefferson State CC,512976,Smith Lareatha,10/8/2021,158.14,Unrestricted Jefferson Campus,Mileage - IS
Jefferson State CC,512977,Sutton Edreama,10/8/2021,33.6,Unrestricted Shared Services,Mileage - IS
Jefferson State CC,512978,Terracon Consultants Inc ,10/8/2021,2592.5,R&R Jefferson Campus ,Construction in Progress - CE
Jefferson State CC,512979,The Dodge Company ,10/8/2021,465.24,CRRSAA - HEERF II Institutional,Materials and Supplies - MS
Jefferson State CC,512980,Townes Kevin,10/8/2021,131.26,Unrestricted Distance Ed,Mileage - IS
Jefferson State CC,512983,Verizon Wireless ,10/8/2021,1869.43,CRRSAA - HEERF II Institutional,Wireless Phones - UC
Jefferson State CC,512984,Wallace Preston,10/8/2021,459.2,Unrestricted Shelby Campus,Mileage - IS
Jefferson State CC,512985,Wheeler Christopher,10/8/2021,805,Unrestricted Shelby Campus,Other Professional Fees - PS
Jefferson State CC,512986,White James,10/8/2021,240,Unrestricted Jefferson Campus,Other Professional Fees - PS
Jefferson State CC,512987,Whittle Christopher,10/8/2021,432,Unrestricted Chilton Campus,Other Professional Fees - PS
Jefferson State CC,512988,Williams Sonja,10/8/2021,18.98,Unrestricted Shared Services,Mileage - IS
Jefferson State CC,512989,Foundation Enterprises LLC ,10/11/2021,339.34,Unrestricted Shared Services,Printing and Binding - OOS
Jefferson State CC,512997,ACCS Deans of Student Affairs Association ,10/14/2021,275,Unrestricted Shared Services,Memberships - PS
Jefferson State CC,512998,ACETA ,10/14/2021,200,Unrestricted Shared Services,Memberships - PS
Jefferson State CC,512999,ACT Inc ,10/14/2021,609,AE-State Regular 2XX0-2XX1,Materials and Supplies - MS
Jefferson State CC,512999,ACT Inc ,10/14/2021,17.84,Spcl Pops Ind Training 2XX0-2XX1,Materials and Supplies - MS
Jefferson State CC,512999,ACT Inc ,10/14/2021,1259.16,Unrestricted Shared Services,Materials and Supplies - MS
Jefferson State CC,513000,Alabama Community College Association ,10/14/2021,8400,Unrestricted Shared Services,Registration Fees- IS
Jefferson State CC,513001,Alabama Funeral Directors Association ,10/14/2021,255,Unrestricted Shared Services,Memberships - PS
Jefferson State CC,513002,Alabama Power Company ,10/14/2021,625.38,Unrestricted Chilton Campus,Electricity - UC
Jefferson State CC,513002,Alabama Power Company ,10/14/2021,1562.63,Unrestricted Jefferson Campus,Electricity - UC
Jefferson State CC,513002,Alabama Power Company ,10/14/2021,1056.13,Unrestricted Shelby Campus,Electricity - UC
Jefferson State CC,513002,Alabama Power Company ,10/14/2021,248.12,Unrestricted St. Clair Campus,Electricity - UC
Jefferson State CC,513003,Arrington Engineering and Land Surveying Inc ,10/14/2021,13500,Special Pops Equipment 2XX1-2XX2,Construction in Progress - CE
Jefferson State CC,513004,AT&T Mobility National Accounts LLC ,10/14/2021,19.99,Unrestricted Shelby Campus,Other Contractual Services - PS
Jefferson State CC,513004,AT&T Mobility National Accounts LLC ,10/14/2021,41.24,AE-Federal Regular 2XX0-2XX1,Wireless Phones - UC
Jefferson State CC,513004,AT&T Mobility National Accounts LLC ,10/14/2021,226.56,DHR Childcare 2XX0-2XX1,Wireless Phones - UC
Jefferson State CC,513004,AT&T Mobility National Accounts LLC ,10/14/2021,211.49,Unrestricted Shared Services,Wireless Phones - UC
Jefferson State CC,513004,AT&T Mobility National Accounts LLC ,10/14/2021,21.99,Unrestricted Shelby Campus,Wireless Phones - UC
Jefferson State CC,513006,Bracken Michael,10/14/2021,1333.33,Unrestricted Shared Services,Other Contractual Services - PS
Jefferson State CC,513010,Center Point Area Chamber of Commerce ,10/14/2021,225,Unrestricted Shared Services,Memberships - PS
Jefferson State CC,513011,City of Pell City ,10/14/2021,71.16,Unrestricted St. Clair Campus,Water & Sewer - UC
Jefferson State CC,513013,Fisher Scientific ,10/14/2021,1683.2,CRRSAA - HEERF II Institutional,Materials and Supplies - MS
Jefferson State CC,513013,Fisher Scientific ,10/14/2021,39.6,STEAM 2XX0-2XX1,Materials and Supplies - MS
Jefferson State CC,513013,Fisher Scientific ,10/14/2021,1866.82,Unrestricted Jefferson Campus,Materials and Supplies - MS
Jefferson State CC,513013,Fisher Scientific ,10/14/2021,3190.24,Unrestricted Shelby Campus,Materials and Supplies - MS
Jefferson State CC,513014,Follett Higher Education Group Inc. ,10/14/2021,1332.5,Dual Enrollment  Sch. 2XX0-2XX1,Scholarship Books
Jefferson State CC,513015,Follett Higher Education Group Inc. ,10/14/2021,2942.5,Mike & Gillian Goodrich Foundation,Materials and Supplies - MS
Jefferson State CC,513018,Galls ,10/14/2021,359.47,Unrestricted Shared Services,Materials and Supplies - MS
Jefferson State CC,513021,Harrell & Hall Enterprises Inc. ,10/14/2021,1424,Unrestricted Shared Services,Materials and Supplies - MS
Jefferson State CC,513022,Hodge Mechanical Services LLC ,10/14/2021,134981.8,R&R Jefferson Campus ,Maintenance & Repairs  - OOS
Jefferson State CC,513023,Home Depot U.S.A. Inc ,10/14/2021,4286.1,Unrestricted Jefferson Campus,Materials and Supplies - MS
Jefferson State CC,513028,Marcus Service & Solutions LLC ,10/14/2021,130285.03,R&R Jefferson Campus ,Maintenance & Repairs  - OOS
Jefferson State CC,513029,Means Advertising Inc ,10/14/2021,22878.5,Unrestricted Shared Services,Advertising & Promotions - OOS
Jefferson State CC,513033,Office Depot ,10/14/2021,3217.33,Unrestricted Shared Services,Printing and Binding - OOS
Jefferson State CC,513034,Opportunity Systems Incorporating Independence LLC ,10/14/2021,1083.6,Unrestricted Shared Services,Other Contractual Services - PS
Jefferson State CC,513035,Palmerdale Fire District ,10/14/2021,62.85,Unrestricted Shared Services,Water & Sewer - UC
Jefferson State CC,513038,Publix Super Markets Inc ,10/14/2021,2.99,Unrestricted Shelby Campus,Materials and Supplies - MS
Jefferson State CC,513040,Rittenhouse ,10/14/2021,400,Unrestricted Shared Services,Technology - non capitalized - MS
Jefferson State CC,513042,Smith Frederick,10/14/2021,9120,Heavy Equip Operator Training,Other Professional Fees - PS
Jefferson State CC,513043,Southern Assoc of Colleges & Schools ,10/14/2021,3000,Unrestricted Shared Services,Registration Fees- IS
Jefferson State CC,513044,Southern Pipe & Supply Co Inc ,10/14/2021,502.15,R&R Jefferson Campus ,Maintenance & Repairs  - OOS
Jefferson State CC,513045,Union State Insurance Inc. ,10/14/2021,74518,Unrestricted Shared Services,Insurance and Bonding - PS
Jefferson State CC,513046,Verizon Wireless ,10/14/2021,800.2,CRRSAA - HEERF II Institutional,Wireless Phones - UC
Jefferson State CC,513047,W W Grainger Inc ,10/14/2021,1582.67,Dual Enrollment  Sch. 2XX9-2XX0,Equipment - non capitalized - MS
Jefferson State CC,513048,Water Works & Sewer Board ,10/14/2021,11454.18,Unrestricted Jefferson Campus,Water & Sewer - UC
Jefferson State CC,513048,Water Works & Sewer Board ,10/14/2021,1721.29,Unrestricted Shelby Campus,Water & Sewer - UC
Jefferson State CC,513049,WEX Inc ,10/14/2021,552.63,Unrestricted Shared Services,Gasoline & Oil - Motor Veh - OOS
Jefferson State CC,513049,WEX Inc ,10/14/2021,142,Unrestricted Shelby Campus,Gasoline & Oil - Motor Veh - OOS
Jefferson State CC,207809,Abad Fortunato,10/15/2021,801.12,Unrestricted Shared Services,Payroll
Jefferson State CC,207810,Anwah Elsie,10/15/2021,801.12,Unrestricted Shared Services,Payroll
Jefferson State CC,207811,Bizzell Dorothy,10/15/2021,1034.78,Unrestricted Shared Services,Payroll
Jefferson State CC,207812,Bradshaw Lauren,10/15/2021,751.05,Unrestricted Shared Services,Payroll
Jefferson State CC,207813,Broome Kristy,10/15/2021,1201.68,Unrestricted Shared Services,Payroll
Jefferson State CC,207814,Brown Jason,10/15/2021,667.6,Unrestricted Shared Services,Payroll
Jefferson State CC,207815,Chapman Chloe,10/15/2021,534.08,Unrestricted Shared Services,Payroll
Jefferson State CC,207816,Chen Ja Lin,10/15/2021,667.6,Unrestricted Shared Services,Payroll
Jefferson State CC,207817,Clark Samantha,10/15/2021,1143.27,Unrestricted Shared Services,Payroll
Jefferson State CC,207818,Coleman Carolyn,10/15/2021,1068.16,Unrestricted Shared Services,Payroll
Jefferson State CC,207819,Cook Rachel,10/15/2021,333.8,Unrestricted Shared Services,Payroll
Jefferson State CC,207820,Cunningham Dana,10/15/2021,1268.44,Unrestricted Shared Services,Payroll
Jefferson State CC,207821,Duke Juanita,10/15/2021,801.12,Unrestricted Shared Services,Payroll
Jefferson State CC,207822,Dykes Betty,10/15/2021,570,Unrestricted Shared Services,Payroll
Jefferson State CC,207823,Edwards Melanie,10/15/2021,600.84,Unrestricted Shared Services,Payroll
Jefferson State CC,207824,Ellis April,10/15/2021,734.36,Unrestricted Shared Services,Payroll
Jefferson State CC,207825,Farris Lisa,10/15/2021,300.42,Unrestricted Shared Services,Payroll
Jefferson State CC,207826,Fields Deloris,10/15/2021,700.98,Unrestricted Shared Services,Payroll
Jefferson State CC,207827,Floyd Natalie,10/15/2021,1098.2,Unrestricted Shared Services,Payroll
Jefferson State CC,207828,Foshee Kathryn,10/15/2021,617.53,Unrestricted Shared Services,Payroll
Jefferson State CC,207829,Gomez Joseph,10/15/2021,934.64,Unrestricted Shared Services,Payroll
Jefferson State CC,207830,Gore Claudia,10/15/2021,534.08,Unrestricted Shared Services,Payroll
Jefferson State CC,207831,Hallmark Brenda,10/15/2021,267.04,Unrestricted Shared Services,Payroll
Jefferson State CC,207832,Ham Lora,10/15/2021,400.56,Unrestricted Shared Services,Payroll
Jefferson State CC,207833,Harper Charman,10/15/2021,734.36,Unrestricted Shared Services,Payroll
Jefferson State CC,207834,Hart Melody,10/15/2021,1902.66,Unrestricted Shared Services,Payroll
Jefferson State CC,207835,Haynes Christal,10/15/2021,600.84,Unrestricted Shared Services,Payroll
Jefferson State CC,207836,Hollingsworth Jasmine,10/15/2021,1235.06,Unrestricted Shared Services,Payroll
Jefferson State CC,207837,Johns Rachel,10/15/2021,1535.48,Unrestricted Shared Services,Payroll
Jefferson State CC,207838,Jones Christina,10/15/2021,1385.27,Unrestricted Shared Services,Payroll
Jefferson State CC,207839,Jones D'Angelo,10/15/2021,617.53,Unrestricted Shared Services,Payroll
Jefferson State CC,207840,King Sandra,10/15/2021,1101.54,Unrestricted Shared Services,Payroll
Jefferson State CC,207841,Liddle Anna,10/15/2021,66.76,Unrestricted Shared Services,Payroll
Jefferson State CC,207842,Logan Shandellyn,10/15/2021,801.12,Unrestricted Shared Services,Payroll
Jefferson State CC,207843,McEntire Ann,10/15/2021,183.59,Unrestricted Shared Services,Payroll
Jefferson State CC,207844,Milam Toshia,10/15/2021,1001.4,Unrestricted Shared Services,Payroll
Jefferson State CC,207845,Miller Shaleen,10/15/2021,534.08,Unrestricted Shared Services,Payroll
Jefferson State CC,207846,Morgan Zachary,10/15/2021,433.94,Unrestricted Shared Services,Payroll
Jefferson State CC,207847,Mullins Kaitlin,10/15/2021,333.8,Unrestricted Shared Services,Payroll
Jefferson State CC,207848,Oberman Allison,10/15/2021,333.8,Unrestricted Shared Services,Payroll
Jefferson State CC,207849,Odom Donna,10/15/2021,267.04,Unrestricted Shared Services,Payroll
Jefferson State CC,207850,Pair Edward,10/15/2021,1435.34,Unrestricted Shared Services,Payroll
Jefferson State CC,207851,Pickett Kimberly,10/15/2021,634.22,Unrestricted Shared Services,Payroll
Jefferson State CC,207852,Pugh Mary Katherine,10/15/2021,400.56,Unrestricted Shared Services,Payroll
Jefferson State CC,207853,Roache Champagne,10/15/2021,634.22,Unrestricted Shared Services,Payroll
Jefferson State CC,207854,Saemaldaher Melanie,10/15/2021,717.67,Unrestricted Shared Services,Payroll
Jefferson State CC,207855,Sasser Carol,10/15/2021,1368.58,Unrestricted Shared Services,Payroll
Jefferson State CC,207856,Self Allison,10/15/2021,1268.44,Unrestricted Shared Services,Payroll
Jefferson State CC,207857,Smith Kandice,10/15/2021,630,Unrestricted Shared Services,Payroll
Jefferson State CC,207858,Snipes Britney,10/15/2021,1001.4,Unrestricted Shared Services,Payroll
Jefferson State CC,207859,Stapleton Emily,10/15/2021,801.12,Unrestricted Shared Services,Payroll
Jefferson State CC,207860,Thomaston Anne,10/15/2021,801.12,Unrestricted Shared Services,Payroll
Jefferson State CC,207861,Tilt Alex,10/15/2021,250.35,Unrestricted Shared Services,Payroll
Jefferson State CC,207862,Walker Shelby,10/15/2021,1201.68,Unrestricted Shared Services,Payroll
Jefferson State CC,207863,Wallis Howard,10/15/2021,1335.2,Unrestricted Shared Services,Payroll
Jefferson State CC,207864,Hackney Natalie,10/15/2021,792,Unrestricted Shared Services,Payroll
Jefferson State CC,207865,Jones Marvin,10/15/2021,1254,Unrestricted Jefferson Campus,Payroll
Jefferson State CC,207866,Yates Lanette,10/15/2021,264,Unrestricted Shared Services,Payroll
Jefferson State CC,207867,Harvey Richard,10/15/2021,1365.6,Unrestricted Shared Services,Payroll
Jefferson State CC,207868,Haywood James,10/15/2021,1170.46,Unrestricted Shared Services,Payroll
Jefferson State CC,207869,Johnson Matthew,10/15/2021,925.48,Unrestricted Shared Services,Payroll
Jefferson State CC,207870,McDonnell Kyle,10/15/2021,1525.21,Unrestricted Shared Services,Payroll
Jefferson State CC,207871,Nabors Stephen,10/15/2021,435.52,Unrestricted Shared Services,Payroll
Jefferson State CC,207872,Panepento Matthew,10/15/2021,1034.36,Unrestricted Shared Services,Payroll
Jefferson State CC,207873,Ward William,10/15/2021,925.48,Unrestricted Shared Services,Payroll
Jefferson State CC,207874,Brantley Karlie,10/15/2021,325.46,Unrestricted Shared Services,Payroll
Jefferson State CC,207875,Carroll Elizabeth,10/15/2021,1251.75,Unrestricted Shared Services,Payroll
Jefferson State CC,207876,Brooks Erica,10/15/2021,937.5,Unrestricted Shelby Campus,Payroll
Jefferson State CC,207877,Chesser Jennifer,10/15/2021,950,Unrestricted Shared Services,Payroll
Jefferson State CC,207878,Johnson-King Sharina,10/15/2021,1000,Unrestricted Shared Services,Payroll
Jefferson State CC,207879,McCurdy Akia,10/15/2021,400,Unrestricted Shelby Campus,Payroll
Jefferson State CC,207880,Smith Lisa,10/15/2021,800,Unrestricted Shared Services,Payroll
Jefferson State CC,207881,Fletcher La'Toya,10/15/2021,1123.2,Unrestricted Shared Services,Payroll
Jefferson State CC,207882,Stephens Sheila,10/15/2021,1027.52,Unrestricted Shared Services,Payroll
Jefferson State CC,207883,Agee Teisha,10/15/2021,1050,CAPTE-WIOA 21-22,Payroll
Jefferson State CC,207884,Anderson LaToya,10/15/2021,422.8,AE-State Regular 2XX0-2XX1,Payroll
Jefferson State CC,207885,Arrowsmith Janice,10/15/2021,803.32,AE-Federal Regular 2XX0-2XX1,Payroll
Jefferson State CC,207886,Badio Jessical,10/15/2021,813.89,AE-Federal Regular 2XX0-2XX1,Payroll
Jefferson State CC,207887,Barnett Laura,10/15/2021,930.16,AE-State Regular 2XX0-2XX1,Payroll
Jefferson State CC,207888,Blackmon Archie,10/15/2021,803.32,AE-Federal Regular 2XX0-2XX1,Payroll
Jefferson State CC,207889,Brown Edith,10/15/2021,676.48,AE - State Inst'l 2XX0-2XX1,Payroll
Jefferson State CC,207890,Callins Lillian,10/15/2021,380.52,AE-Federal Regular 2XX0-2XX1,Payroll
Jefferson State CC,207891,Cochis Angela,10/15/2021,380.52,AE-Federal Regular 2XX0-2XX1,Payroll
Jefferson State CC,207892,Coleman Henry,10/15/2021,697.62,AE-Federal Regular 2XX0-2XX1,Payroll
Jefferson State CC,207893,Cook Kimberly,10/15/2021,676.48,AE-State Regular 2XX0-2XX1,Payroll
Jefferson State CC,207894,Davis Jeffrey,10/15/2021,990.36,AE-State Regular 2XX0-2XX1,Payroll
Jefferson State CC,207895,Eichhorn Rhonda,10/15/2021,507.36,AE-State Regular 2XX0-2XX1,Payroll
Jefferson State CC,207896,Hawkins Felita,10/15/2021,774,AE-State Regular 2XX0-2XX1,Payroll
Jefferson State CC,207897,Malone Valencia,10/15/2021,845.6,AE-State Regular 2XX0-2XX1,Payroll
Jefferson State CC,207898,Markovitz Yevonne,10/15/2021,887.88,AE-State Regular 2XX0-2XX1,Payroll
Jefferson State CC,207899,Merritt Adrienne,10/15/2021,655.2,AE-Federal Regular 2XX0-2XX1,Payroll
Jefferson State CC,207900,Montgomery Helen,10/15/2021,84.56,AE-State Regular 2XX0-2XX1,Payroll
Jefferson State CC,207901,Morgan Mary,10/15/2021,676.48,AE - State Inst'l 2XX0-2XX1,Payroll
Jefferson State CC,207902,Oberneder Connie,10/15/2021,803.32,AE-State Regular 2XX0-2XX1,Payroll
Jefferson State CC,207903,Parr Michele,10/15/2021,866.74,AE-State Regular 2XX0-2XX1,Payroll
Jefferson State CC,207904,Parris Cathrine,10/15/2021,591.92,AE-Federal Regular 2XX0-2XX1,Payroll
Jefferson State CC,207905,Pearson Regina,10/15/2021,772.2,AE-State Regular 2XX0-2XX1,Payroll
Jefferson State CC,207906,Riggins Resha,10/15/2021,486.22,AE-State Regular 2XX0-2XX1,Payroll
Jefferson State CC,207907,Roberts Barbara,10/15/2021,454.51,AE-State Regular 2XX0-2XX1,Payroll
Jefferson State CC,207908,Rudd Julia,10/15/2021,782.18,AE-State Regular 2XX0-2XX1,Payroll
Jefferson State CC,207909,Sanders Anthony Michael,10/15/2021,898.45,AE-Federal Regular 2XX0-2XX1,Payroll
Jefferson State CC,207910,Sheikh Linda,10/15/2021,591.92,AE-State Regular 2XX0-2XX1,Payroll
Jefferson State CC,207911,Shorter Wanda,10/15/2021,835.03,AE-Federal Regular 2XX0-2XX1,Payroll
Jefferson State CC,207912,Skalac Robyn,10/15/2021,264.25,AE-State Regular 2XX0-2XX1,Payroll
Jefferson State CC,207913,Snider Charles,10/15/2021,982.77,AE-State Regular 2XX0-2XX1,Payroll
Jefferson State CC,207914,Spraberry Mollie,10/15/2021,440.16,AE-State Regular 2XX0-2XX1,Payroll
Jefferson State CC,207915,Sweatt Helen,10/15/2021,549.64,AE-State Regular 2XX0-2XX1,Payroll
Jefferson State CC,207916,Tucker Selesta,10/15/2021,295.96,AE-State Regular 2XX0-2XX1,Payroll
Jefferson State CC,207917,Vinson John,10/15/2021,887.88,AE-State Regular 2XX0-2XX1,Payroll
Jefferson State CC,207918,Vinson Phyllis,10/15/2021,803.32,AE-State Regular 2XX0-2XX1,Payroll
Jefferson State CC,207919,Wiginton Beverly,10/15/2021,887.88,AE-State Regular 2XX0-2XX1,Payroll
Jefferson State CC,207920,Wood Gayle,10/15/2021,422.8,AE-State Regular 2XX0-2XX1,Payroll
Jefferson State CC,207921,Wren Walter,10/15/2021,264.25,AE-State Regular 2XX0-2XX1,Payroll
Jefferson State CC,207922,Breaux Carolyn,10/15/2021,654.36,Unrestricted Shared Services,Payroll
Jefferson State CC,207923,Foster Richard,10/15/2021,611.52,Unrestricted Shared Services,Payroll
Jefferson State CC,207924,Frank Theresa,10/15/2021,611.52,Unrestricted Shared Services,Payroll
Jefferson State CC,207925,Smith Victoria,10/15/2021,498.56,Unrestricted Shared Services,Payroll
Jefferson State CC,207926,Charping Ronda,10/15/2021,1135.68,Unrestricted Shared Services,Payroll
Jefferson State CC,207927,Armstrong Adell,10/15/2021,570,Unrestricted Shared Services,Payroll
Jefferson State CC,207928,Begnaud Phillip,10/15/2021,1216,Unrestricted Shared Services,Payroll
Jefferson State CC,207929,O'Hern David,10/15/2021,630,Unrestricted Shared Services,Payroll
Jefferson State CC,207930,Addington Jennifer,10/15/2021,1580.8,Unrestricted Shared Services,Payroll
Jefferson State CC,207931,Ashline Kasey,10/15/2021,832,Unrestricted Shared Services,Payroll
Jefferson State CC,207932,Barnes Wilbert,10/15/2021,520,Unrestricted Shared Services,Payroll
Jefferson State CC,207933,Barnett Chesca,10/15/2021,312,Unrestricted Shared Services,Payroll
Jefferson State CC,207934,Bishop Patrick,10/15/2021,249.6,Unrestricted Shared Services,Payroll
Jefferson State CC,207935,Burgess Laura,10/15/2021,832,Unrestricted Shared Services,Payroll
Jefferson State CC,207936,Chappel Delena,10/15/2021,582.4,Unrestricted Shared Services,Payroll
Jefferson State CC,207937,Cobb Jonathan,10/15/2021,520,Unrestricted Shared Services,Payroll
Jefferson State CC,207938,Crump Kimberly,10/15/2021,832,Unrestricted Shared Services,Payroll
Jefferson State CC,207939,Gray Lisa,10/15/2021,124.8,Unrestricted Shared Services,Payroll
Jefferson State CC,207940,Hollingsworth Donna,10/15/2021,988,Unrestricted Shared Services,Payroll
Jefferson State CC,207941,Marshall Tommisene,10/15/2021,249.6,Unrestricted Shared Services,Payroll
Jefferson State CC,207942,McLain Christine,10/15/2021,1710.8,Women's Fund Rapid Response,Payroll
Jefferson State CC,207943,Mills Justin,10/15/2021,624,Unrestricted Shared Services,Payroll
Jefferson State CC,207944,Murphy Penny,10/15/2021,416,Unrestricted Shared Services,Payroll
Jefferson State CC,207945,Parker Lakisha,10/15/2021,873.6,Unrestricted Shared Services,Payroll
Jefferson State CC,207946,Parsons Charles,10/15/2021,291.2,Unrestricted Shared Services,Payroll
Jefferson State CC,207947,Payne Angela,10/15/2021,1330,Unrestricted Shared Services,Payroll
Jefferson State CC,207948,Payne Natalya,10/15/2021,451.5,Unrestricted Shared Services,Payroll
Jefferson State CC,207949,Pullen Lacey,10/15/2021,665.6,Unrestricted Shared Services,Payroll
Jefferson State CC,207950,Purdy Zane,10/15/2021,374.4,Unrestricted Shared Services,Payroll
Jefferson State CC,207951,Roan Carl,10/15/2021,291.2,Field Engineering Training 2020-068,Payroll
Jefferson State CC,207952,Robinson Jonathon,10/15/2021,499.2,Unrestricted Shared Services,Payroll
Jefferson State CC,207953,Russell Jackie,10/15/2021,499.2,Unrestricted Shared Services,Payroll
Jefferson State CC,207954,Russell Stephanie,10/15/2021,1497.6,Unrestricted Shared Services,Payroll
Jefferson State CC,207955,Smith Janine,10/15/2021,499.2,Unrestricted Shared Services,Payroll
Jefferson State CC,207956,Strouss Lauren,10/15/2021,665.6,Unrestricted Shared Services,Payroll
Jefferson State CC,207957,Suttle Debra,10/15/2021,894.4,Unrestricted Shared Services,Payroll
Jefferson State CC,207958,Sutton James,10/15/2021,499.2,Unrestricted Shared Services,Payroll
Jefferson State CC,207959,Swift Mitzi,10/15/2021,228.8,Unrestricted Shared Services,Payroll
Jefferson State CC,207960,Thomas Linda,10/15/2021,228.8,Unrestricted Shared Services,Payroll
Jefferson State CC,207961,Travis Adrienne,10/15/2021,580,Unrestricted Shared Services,Payroll
Jefferson State CC,207962,Willis Erica,10/15/2021,499.2,Unrestricted Shared Services,Payroll
Jefferson State CC,207963,Winborn Jennifer,10/15/2021,249.6,Unrestricted Shared Services,Payroll
Jefferson State CC,207964,Busby Yvette,10/15/2021,936,Unrestricted Shared Services,Payroll
Jefferson State CC,207965,Jones Lesia,10/15/2021,570,Unrestricted Shared Services,Payroll
Jefferson State CC,207966,Clifton Tracy,10/15/2021,368.94,Unrestricted Shared Services,Payroll
Jefferson State CC,207967,Glover Anita,10/15/2021,654.84,Unrestricted Shared Services,Payroll
Jefferson State CC,207968,Moore Kimberly,10/15/2021,794.64,Unrestricted Shared Services,Payroll
Jefferson State CC,207969,Stewart Janice,10/15/2021,605.44,Unrestricted Shared Services,Payroll
Jefferson State CC,207970,Amerson-Dobbs Jessica,10/15/2021,441,Unrestricted Shared Services,Payroll
Jefferson State CC,207971,Cannon Kimberly,10/15/2021,456.75,Unrestricted Shared Services,Payroll
Jefferson State CC,207972,Dancy Darryl,10/15/2021,441,Unrestricted Shared Services,Payroll
Jefferson State CC,207973,Grayson Shirley,10/15/2021,199.5,Unrestricted Shared Services,Payroll
Jefferson State CC,207974,Gumbs Andrea,10/15/2021,430.5,Unrestricted Shared Services,Payroll
Jefferson State CC,207975,Moore Shanine,10/15/2021,654.36,Unrestricted Shared Services,Payroll
Jefferson State CC,207976,Payne Adrian,10/15/2021,441,Unrestricted Shared Services,Payroll
Jefferson State CC,207977,Wood Kelly,10/15/2021,399,Unrestricted Shared Services,Payroll
Jefferson State CC,207978,Liddle Elizabeth,10/15/2021,570,Unrestricted Shared Services,Payroll
Jefferson State CC,207979,Wilson Candace,10/15/2021,472.5,Unrestricted Shared Services,Payroll
Jefferson State CC,207980,Allen Felicia,10/15/2021,420,Unrestricted Shared Services,Payroll
Jefferson State CC,207981,Allen Vicki,10/15/2021,399,Unrestricted Shared Services,Payroll
Jefferson State CC,207982,Anderson Davida,10/15/2021,378,Unrestricted Shared Services,Payroll
Jefferson State CC,207983,Blankenship Jamie,10/15/2021,399,Unrestricted Shared Services,Payroll
Jefferson State CC,207984,Carlee Jerrica,10/15/2021,570,Unrestricted Shared Services,Payroll
Jefferson State CC,207985,Carruba Lorrie,10/15/2021,567,Unrestricted Shared Services,Payroll
Jefferson State CC,207986,Dunning William,10/15/2021,567,Unrestricted Shared Services,Payroll
Jefferson State CC,207987,Duren Courtney,10/15/2021,294,Unrestricted Shared Services,Payroll
Jefferson State CC,207988,Edwards Tracy,10/15/2021,336,Unrestricted Shared Services,Payroll
Jefferson State CC,207989,Franklin Gillian,10/15/2021,357,Unrestricted Shared Services,Payroll
Jefferson State CC,207990,Hairston Ella,10/15/2021,399,Unrestricted Shared Services,Payroll
Jefferson State CC,207991,Jones Meldryn,10/15/2021,435.75,Unrestricted Shared Services,Payroll
Jefferson State CC,207992,Key Jacob,10/15/2021,446.25,Unrestricted Shared Services,Payroll
Jefferson State CC,207993,Kirkland Olivia,10/15/2021,570,Unrestricted Shared Services,Payroll
Jefferson State CC,207994,Marbury Patricia,10/15/2021,570,Unrestricted Shared Services,Payroll
Jefferson State CC,207995,Putnam Patricia,10/15/2021,1216,Unrestricted Shared Services,Payroll
Jefferson State CC,207996,Rheaume Stephanie,10/15/2021,441,Unrestricted Shared Services,Payroll
Jefferson State CC,207997,Greene Greta,10/15/2021,430.5,Unrestricted Shared Services,Payroll
Jefferson State CC,207998,Saylor Cleanese,10/15/2021,288.75,Unrestricted Shared Services,Payroll
Jefferson State CC,207999,Smith Khalilah,10/15/2021,690,Unrestricted Shared Services,Payroll
Jefferson State CC,208000,White Sandra,10/15/2021,399,Unrestricted Shared Services,Payroll
Jefferson State CC,208001,Wilson Courtney,10/15/2021,388.5,Unrestricted Shared Services,Payroll
Jefferson State CC,208002,Zandi Nader,10/15/2021,1216,Unrestricted Shared Services,Payroll
Jefferson State CC,208003,Adams Floyce,10/15/2021,570,Unrestricted Shared Services,Payroll
Jefferson State CC,208004,Ali Donna,10/15/2021,570,Unrestricted Shared Services,Payroll
Jefferson State CC,208005,Bell LaQueon,10/15/2021,67.5,CAPTE-WIOA 21-22,Payroll
Jefferson State CC,208006,Hampton Jacqueline,10/15/2021,168,Unrestricted Shared Services,Payroll
Jefferson State CC,208007,Jordan Solley,10/15/2021,162,CAPTE-WIOA 21-22,Payroll
Jefferson State CC,208008,McRae Kenneth,10/15/2021,993.58,ACCS ARC Strong Initiative,Payroll
Jefferson State CC,208009,Robinson Mattie,10/15/2021,630,Unrestricted Shared Services,Payroll
Jefferson State CC,208010,Brown-Ward Maurita,10/15/2021,252,Unrestricted Shared Services,Payroll
Jefferson State CC,208011,Crim Margaret,10/15/2021,644.8,Unrestricted Shared Services,Payroll
Jefferson State CC,208012,Kirk Willodean,10/15/2021,336,Unrestricted Shared Services,Payroll
Jefferson State CC,208013,Lewis Stephanie,10/15/2021,336,Unrestricted Shared Services,Payroll
Jefferson State CC,208014,Prevo Deborah,10/15/2021,585,Unrestricted Shared Services,Payroll
Jefferson State CC,208015,Gillham Martha,10/15/2021,512.5,Unrestricted Shared Services,Payroll
Jefferson State CC,208016,Balog Adam,10/15/2021,168,Unrestricted Shared Services,Payroll
Jefferson State CC,208017,Barber Christopher,10/15/2021,75,Unrestricted Shared Services,Payroll
Jefferson State CC,208018,Boggan Brenda,10/15/2021,84,Unrestricted Shared Services,Payroll
Jefferson State CC,208019,Burton Kenneth,10/15/2021,645,Unrestricted Shared Services,Payroll
Jefferson State CC,208020,Chandler James,10/15/2021,357,Unrestricted Shared Services,Payroll
Jefferson State CC,208021,Channel Raymond,10/15/2021,540,Unrestricted Shared Services,Payroll
Jefferson State CC,208022,Crowe Jeffrey,10/15/2021,300,Unrestricted Shared Services,Payroll
Jefferson State CC,208023,Gibbs John,10/15/2021,600,Unrestricted Shared Services,Payroll
Jefferson State CC,208024,Harrell John,10/15/2021,299.25,Unrestricted Shared Services,Payroll
Jefferson State CC,208025,Harrell Ramona,10/15/2021,399,Unrestricted Shared Services,Payroll
Jefferson State CC,208026,Hedrick Charles,10/15/2021,570,Unrestricted Shared Services,Payroll
Jefferson State CC,208027,Hicks Alan,10/15/2021,450,Unrestricted Shared Services,Payroll
Jefferson State CC,208028,Shobe Phillip,10/15/2021,945,Unrestricted Shared Services,Payroll
Jefferson State CC,208029,Shorter Garland,10/15/2021,510,Unrestricted Shared Services,Payroll
Jefferson State CC,208031,Partain Mark,10/15/2021,760,Unrestricted Shelby Campus,Payroll
Jefferson State CC,208032,Steele Pamela,10/15/2021,475,Unrestricted Shared Services,Payroll
Jefferson State CC,208033,Burge Kathy,10/15/2021,357,Unrestricted Shared Services,Payroll
Jefferson State CC,208034,Palmore Myra,10/15/2021,420,Unrestricted Shared Services,Payroll
Jefferson State CC,208035,Partain Daniel,10/15/2021,588,Unrestricted Shared Services,Payroll
Jefferson State CC,208045,Starnes Jane,10/15/2021,2498.63,Unrestricted Shared Services,Payroll
Jefferson State CC,208046,Self Bonnie,10/15/2021,2456.75,Unrestricted Shared Services,Payroll
Jefferson State CC,208047,Harris Seena,10/15/2021,2162.33,Unrestricted Shared Services,Payroll
Jefferson State CC,208048,Wallace Preston,10/15/2021,2632.5,Unrestricted Shared Services,Payroll
Jefferson State CC,208049,Ray Beth,10/15/2021,1909.75,Unrestricted Shared Services,Payroll
Jefferson State CC,208050,Poe Ami,10/15/2021,1340.42,Unrestricted Shared Services,Payroll
Jefferson State CC,208051,Deason Vicki,10/15/2021,1420.29,Unrestricted Distance Ed,Payroll
Jefferson State CC,208052,McLendon Rita,10/15/2021,2078.13,Unrestricted Shared Services,Payroll
Jefferson State CC,208053,Cox Melanie,10/15/2021,2078.13,Unrestricted Shared Services,Payroll
Jefferson State CC,208054,Boackle Emil,10/15/2021,1741.75,Unrestricted Shared Services,Payroll
Jefferson State CC,208055,DeLoach Merissa,10/15/2021,1573.38,Unrestricted Shared Services,Payroll
Jefferson State CC,208056,Jackson Debra,10/15/2021,2078.13,Unrestricted Shared Services,Payroll
Jefferson State CC,208057,Braswell Gail,10/15/2021,1741.5,Unrestricted Shared Services,Payroll
Jefferson State CC,208058,Archer Teresa,10/15/2021,2330.71,Unrestricted Shared Services,Payroll
Jefferson State CC,208059,Hopkins Seantel,10/15/2021,1825.54,Unrestricted Shared Services,Payroll
Jefferson State CC,208060,Cheeks Tammara,10/15/2021,1320.75,CAPTE-WIOA 21-22,Payroll
Jefferson State CC,208061,Geralds Jacqueline,10/15/2021,2246.5,AE-State Regular 2XX1-2XX2,Payroll
Jefferson State CC,208062,Finch Tamara,10/15/2021,1363.04,Unrestricted Shared Services,Payroll
Jefferson State CC,208063,Carr Kathi,10/15/2021,2036.04,Unrestricted Shared Services,Payroll
Jefferson State CC,208064,Coker Pamela,10/15/2021,1489.21,Unrestricted Shared Services,Payroll
Jefferson State CC,208065,Keenum Lisa,10/15/2021,2456.75,Unrestricted Shared Services,Payroll
Jefferson State CC,208066,Roseberry Tara,10/15/2021,1657.54,Unrestricted Shared Services,Payroll
Jefferson State CC,208067,Cruso Lisa,10/15/2021,2078.13,Unrestricted Shared Services,Payroll
Jefferson State CC,208068,Cooper Ginger,10/15/2021,2078.13,Unrestricted Shared Services,Payroll
Jefferson State CC,208069,Grady Octavia,10/15/2021,1573.38,Unrestricted Shared Services,Payroll
Jefferson State CC,208070,Naramore Anna,10/15/2021,1741.75,Unrestricted Shared Services,Payroll
Jefferson State CC,208071,Pugh Sandra,10/15/2021,2540.92,Unrestricted Shared Services,Payroll
Jefferson State CC,208072,Pickens Elizabeth,10/15/2021,2162.33,Unrestricted Shared Services,Payroll
Jefferson State CC,208073,Hughes Tina,10/15/2021,2246.5,Unrestricted Shared Services,Payroll
Jefferson State CC,208074,Jackson Courtney,10/15/2021,1404.96,Unrestricted Shared Services,Payroll
Jefferson State CC,208075,Turner Jeanie,10/15/2021,2246.5,Unrestricted Shared Services,Payroll
Jefferson State CC,208076,Thomas Donna,10/15/2021,2162.33,Unrestricted Shared Services,Payroll
Jefferson State CC,208077,Burney Roscelia,10/15/2021,2162.33,Unrestricted Shared Services,Payroll
Jefferson State CC,208078,Carpenter Valencia,10/15/2021,1951.96,Unrestricted Shared Services,Payroll
Jefferson State CC,208079,Castleberry James,10/15/2021,1320.75,Unrestricted Shared Services,Payroll
Jefferson State CC,208080,Collins Angela,10/15/2021,2372.5,Unrestricted Shared Services,Payroll
Jefferson State CC,208081,Duncan Leconyea,10/15/2021,1951.96,Unrestricted Shared Services,Payroll
Jefferson State CC,208082,Fennell Tapeka,10/15/2021,2077.88,Unrestricted Shared Services,Payroll
Jefferson State CC,208083,Foster Deborah,10/15/2021,1362.83,Unrestricted Shared Services,Payroll
Jefferson State CC,208084,Fraser Thompson Stacye,10/15/2021,2456.75,Unrestricted Shared Services,Payroll
Jefferson State CC,208085,Howard Amber,10/15/2021,1447.08,Unrestricted Shared Services,Payroll
Jefferson State CC,208086,Jones Juanita,10/15/2021,1951.96,Unrestricted Shared Services,Payroll
Jefferson State CC,208087,Kelley Pamela,10/15/2021,2810.87,Unrestricted Shared Services,Payroll
Jefferson State CC,208088,Minter Shondrika,10/15/2021,1236.71,Unrestricted Shared Services,Payroll
Jefferson State CC,208089,Pippens Amberetta,10/15/2021,2288.37,Unrestricted Shared Services,Payroll
Jefferson State CC,208090,Silor Virginia,10/15/2021,2583.04,Unrestricted Shared Services,Payroll
Jefferson State CC,208091,Sipe James,10/15/2021,1531.29,Unrestricted Shared Services,Payroll
Jefferson State CC,208092,Smith Heather,10/15/2021,2078.13,Unrestricted Shared Services,Payroll
Jefferson State CC,208093,Stevens Qianna,10/15/2021,2104.71,Unrestricted Shared Services,Payroll
Jefferson State CC,208094,Urbahns Laura,10/15/2021,2162.33,Unrestricted Shared Services,Payroll
Jefferson State CC,208095,Williams Sonja,10/15/2021,1993.92,Unrestricted Shared Services,Payroll
Jefferson State CC,208096,Chambers Lynn,10/15/2021,1909.75,AE-Federal Regular 2XX1-2XX2,Payroll
Jefferson State CC,208097,Hawkins Chelsie,10/15/2021,681.52,AE-State Regular 2XX1-2XX2,Payroll
Jefferson State CC,208097,Hawkins Chelsie,10/15/2021,681.52,Unrestricted Shared Services,Payroll
Jefferson State CC,208098,Anderson Laurel,10/15/2021,1404.96,Unrestricted Shared Services,Payroll
Jefferson State CC,208099,Clark Natalya,10/15/2021,1867.79,Unrestricted Shared Services,Payroll
Jefferson State CC,208100,Cobb Rose,10/15/2021,2330.25,Unrestricted Shared Services,Payroll
Jefferson State CC,208101,Dunning Freddie,10/15/2021,2540.92,Unrestricted Shared Services,Payroll
Jefferson State CC,208102,Ezell Laura,10/15/2021,1741.5,Unrestricted Shared Services,Payroll
Jefferson State CC,208103,Smith Lareatha,10/15/2021,2372.5,Unrestricted Shared Services,Payroll
Jefferson State CC,208104,Barranger Lauren,10/15/2021,1909.75,Unrestricted Shared Services,Payroll
Jefferson State CC,208105,Brown Cassandra,10/15/2021,1741.75,Unrestricted Shared Services,Payroll
Jefferson State CC,208106,Cimalore Beverly,10/15/2021,2372.5,Unrestricted Shared Services,Payroll
Jefferson State CC,208107,Culver Cynthia,10/15/2021,2541.79,Unrestricted Shared Services,Payroll
Jefferson State CC,208108,Fisher Debra,10/15/2021,2036.04,Unrestricted Shared Services,Payroll
Jefferson State CC,208109,Guizar Hector,10/15/2021,1489.21,Unrestricted Shared Services,Payroll
Jefferson State CC,208110,Hagood Anita,10/15/2021,1362.83,Unrestricted Shared Services,Payroll
Jefferson State CC,208111,Holman Beatrice,10/15/2021,1362.83,Unrestricted Shared Services,Payroll
Jefferson State CC,208112,Hyde Robert,10/15/2021,1068.5,Unrestricted Shared Services,Payroll
Jefferson State CC,208113,Lewis Scott,10/15/2021,1068.5,Unrestricted Shared Services,Payroll
Jefferson State CC,208114,Lopez Jorge,10/15/2021,1489.21,Unrestricted Shared Services,Payroll
Jefferson State CC,208115,Miller Stephanie,10/15/2021,2288.38,Unrestricted Shared Services,Payroll
Jefferson State CC,208116,Stewart Aaron,10/15/2021,1110.63,Unrestricted Shared Services,Payroll
Jefferson State CC,208117,Swann Christopher,10/15/2021,2078.13,Unrestricted Shared Services,Payroll
Jefferson State CC,208118,Wilson Colton,10/15/2021,1909.75,Unrestricted Shared Services,Payroll
Jefferson State CC,208119,Chamblin Juanita,10/15/2021,3080.48,Unrestricted Shared Services,Payroll
Jefferson State CC,208120,Key Karen,10/15/2021,2456.75,Unrestricted Shared Services,Payroll
Jefferson State CC,208121,Sutton Edreama,10/15/2021,3015.79,Unrestricted Shared Services,Payroll
Jefferson State CC,208122,Hamilton-Williams Margaret,10/15/2021,2162.33,Unrestricted Shared Services,Payroll
Jefferson State CC,208123,Kimble Lisa,10/15/2021,2246.29,Unrestricted Shared Services,Payroll
Jefferson State CC,208124,Cooper Jay,10/15/2021,1194.63,Unrestricted Shared Services,Payroll
Jefferson State CC,208125,Barnett C,10/15/2021,2162.33,Unrestricted Shared Services,Payroll
Jefferson State CC,208126,Borden Leslie,10/15/2021,1236.88,Unrestricted Shared Services,Payroll
Jefferson State CC,208127,Carson William,10/15/2021,1825.92,Unrestricted Shared Services,Payroll
Jefferson State CC,208128,Green Vincent,10/15/2021,1741.5,Unrestricted Shared Services,Payroll
Jefferson State CC,208129,Harris Michael,10/15/2021,1867.79,Unrestricted Shared Services,Payroll
Jefferson State CC,208130,James Selena,10/15/2021,1573.38,Unrestricted Shared Services,Payroll
Jefferson State CC,208131,McDonald Thomas,10/15/2021,2078.13,Unrestricted Shared Services,Payroll
Jefferson State CC,208132,Nathan Charlie,10/15/2021,1447.25,Unrestricted Shared Services,Payroll
Jefferson State CC,208133,Powrzanas Rodney,10/15/2021,1657.54,Unrestricted Shared Services,Payroll
Jefferson State CC,208134,Rogers Rodney,10/15/2021,1657.54,Unrestricted Shared Services,Payroll
Jefferson State CC,208135,Tidmore Cecil,10/15/2021,1825.92,Unrestricted Shared Services,Payroll
Jefferson State CC,208136,Toney Clifford,10/15/2021,2372.79,Unrestricted Shared Services,Payroll
Jefferson State CC,208137,Maddox Cynthia,10/15/2021,2246.5,Unrestricted Shared Services,Payroll
Jefferson State CC,208138,Sullivan Terri,10/15/2021,2162.33,Unrestricted Shared Services,Payroll
Jefferson State CC,208139,Brown Kenneth,10/15/2021,1160.38,Unrestricted Shared Services,Payroll
Jefferson State CC,208140,Cunningham Velma,10/15/2021,1615.63,Unrestricted Shared Services,Payroll
Jefferson State CC,208141,Eason Haley,10/15/2021,1236.71,Unrestricted Shared Services,Payroll
Jefferson State CC,208142,McCormack Phillip,10/15/2021,1573.38,Unrestricted Shared Services,Payroll
Jefferson State CC,208143,Payne Russell,10/15/2021,2372.5,Unrestricted Shared Services,Payroll
Jefferson State CC,208144,Pendleton Carolyn,10/15/2021,1011.17,Unrestricted Shared Services,Payroll
Jefferson State CC,208145,Purvis Larose,10/15/2021,1699.79,Unrestricted Shared Services,Payroll
Jefferson State CC,208146,Sanders Bernard,10/15/2021,1952.25,Unrestricted Shared Services,Payroll
Jefferson State CC,208147,Steele Kelvin,10/15/2021,1531.42,Unrestricted Shared Services,Payroll
Jefferson State CC,208148,Stockley Ginger,10/15/2021,2372.5,Unrestricted Shared Services,Payroll
Jefferson State CC,208149,Brown Mavis,10/15/2021,1194.75,Unrestricted Shared Services,Payroll
Jefferson State CC,208150,Cooper-Cox Robbie,10/15/2021,1363.04,Unrestricted Shared Services,Payroll
Jefferson State CC,208151,Crenshaw Lakeila,10/15/2021,1110.63,Unrestricted Shared Services,Payroll
Jefferson State CC,208152,Duchock Anita,10/15/2021,1363.04,Unrestricted Shared Services,Payroll
Jefferson State CC,208153,Johnson Gayle,10/15/2021,834.67,Unrestricted Shared Services,Payroll
Jefferson State CC,208154,Kimbrell Skyler,10/15/2021,1404.96,Unrestricted Shared Services,Payroll
Jefferson State CC,208155,King Linda,10/15/2021,1068.5,Unrestricted Shared Services,Payroll
Jefferson State CC,208156,Lattimore Rosetta,10/15/2021,1152.67,Unrestricted Shared Services,Payroll
Jefferson State CC,208157,Liddle Christiana,10/15/2021,1152.67,Unrestricted Shared Services,Payroll
Jefferson State CC,208158,Mathis Brenda,10/15/2021,1531.42,Unrestricted Shared Services,Payroll
Jefferson State CC,208159,Vann Rowella,10/15/2021,1110.63,Unrestricted Shared Services,Payroll
Jefferson State CC,208160,Washington Destin,10/15/2021,1531.42,Unrestricted Shared Services,Payroll
Jefferson State CC,208161,Freeman Robine,10/15/2021,1910.17,Unrestricted Shared Services,Payroll
Jefferson State CC,208162,Kent Eric,10/15/2021,1068.5,Unrestricted Shared Services,Payroll
Jefferson State CC,208163,Wynn Michael,10/15/2021,1363.04,Unrestricted Shared Services,Payroll
Jefferson State CC,208164,Pettry Sherry,10/15/2021,2246.5,Unrestricted Shared Services,Payroll
Jefferson State CC,513050,Alabama Community College System ,10/15/2021,589115,Unrestricted Shared Services,ACCS Enhancement Fee Expense - OOS
Jefferson State CC,513050,Alabama Community College System ,10/15/2021,117571,Unrestricted Shared Services,Bond Reserve Fee Expense - OOS
Jefferson State CC,513050,Alabama Community College System ,10/15/2021,147234.49,Unrestricted Shared Services,Other Professional Fees - PS
Jefferson State CC,513051,Bank of America ,10/15/2021,499.98,Unrestricted Shelby Campus,Internet - UC
Jefferson State CC,513051,Bank of America ,10/15/2021,456.96,United Way-Pioneer Pantry,Materials and Supplies - MS
Jefferson State CC,513051,Bank of America ,10/15/2021,1018.73,Unrestricted Shared Services,Technology - non capitalized - MS
Jefferson State CC,513052,Bank of America ,10/15/2021,89.37,Unrestricted Shared Services,Other Travel Expenses - IS
Jefferson State CC,513053,Graybar Electric ,10/15/2021,2908.67,Unrestricted Jefferson Campus,Materials and Supplies - MS
Jefferson State CC,513054,Home Depot U.S.A. Inc. ,10/15/2021,5980.61,Dual Enrollment  Sch. 2XX0-2XX1,Materials and Supplies - MS
Jefferson State CC,513055,Pasco Scientific ,10/15/2021,4169,STEAM 2XX0-2XX1,Materials and Supplies - MS
Jefferson State CC,513056,Pocket Nurse Enterprises Inc. ,10/15/2021,2775.99,Dual Enrollment  Sch. 2XX0-2XX1,Equipment - non capitalized - MS
Jefferson State CC,513056,Pocket Nurse Enterprises Inc. ,10/15/2021,1811.86,Dual Enrollment  Sch. 2XX0-2XX1,Materials and Supplies - MS
Jefferson State CC,513056,Pocket Nurse Enterprises Inc. ,10/15/2021,31116.25,Meyer Foundation-Med Skills Lab,Materials and Supplies - MS
Jefferson State CC,513057,W W Grainger Inc ,10/15/2021,10720.32,Dual Enrollment  Sch. 2XX0-2XX1,Materials and Supplies - MS
Jefferson State CC,513058,Falls Facility Services Inc. ,10/15/2021,1694,Unrestricted Jefferson Campus,Maintenance & Repairs  - OOS
Jefferson State CC,513059,Triple Point Industries LLC ,10/15/2021,1775,Unrestricted Shelby Campus,Maintenance & Repairs  - OOS
Jefferson State CC,600555,Ayala Heila,10/15/2021,567.46,Unrestricted Shared Services,Payroll
Jefferson State CC,600556,Boland Keema,10/15/2021,534.08,Unrestricted Shared Services,Payroll
Jefferson State CC,600557,Cofield Sally,10/15/2021,66,Unrestricted Shared Services,Payroll
Jefferson State CC,600558,Gonzalez Danielle,10/15/2021,1134.92,Unrestricted Shared Services,Payroll
Jefferson State CC,600559,Hill Yvette,10/15/2021,166.9,Unrestricted Shared Services,Payroll
Jefferson State CC,600560,Latham Jessica,10/15/2021,350.49,Unrestricted Shared Services,Payroll
Jefferson State CC,600561,Bradley Nakia,10/15/2021,456.75,Unrestricted Shared Services,Payroll
Jefferson State CC,600562,Jones Paul,10/15/2021,195,Unrestricted Shared Services,Payroll
Jefferson State CC,600563,Karluk Dakota,10/15/2021,430.5,Unrestricted Shared Services,Payroll
Jefferson State CC,600584,Turner Yolanda,10/15/2021,630,Unrestricted Shared Services,Payroll
Jefferson State CC,600586,Flanagan Soneaqua,10/15/2021,582.4,Unrestricted Shared Services,Payroll
Jefferson State CC,600596,Morgan Rickey,10/15/2021,425.25,Unrestricted Shared Services,Payroll
Jefferson State CC,513071,Advance Alabama Media Llc ,10/22/2021,154,Unrestricted Shared Services,Advertising & Promotions - OOS
Jefferson State CC,513072,Allsteel Inc ,10/22/2021,5254.2,Unrestricted Jefferson Campus,Materials and Supplies - MS
Jefferson State CC,513073,Berry Archie,10/22/2021,19930.57,Payroll Clearing Fund,Payroll Clearing
Jefferson State CC,513074,Carolina Biological Supply Co ,10/22/2021,396.57,Dual Enrollment  Sch. 2XX0-2XX1,Materials and Supplies - MS
Jefferson State CC,513075,Central Paper Co Inc ,10/22/2021,14282.4,Unrestricted Jefferson Campus,Materials and Supplies - MS
Jefferson State CC,513076,Cognisco Technologies Inc. ,10/22/2021,123614,ICI Equip Driving Simulator,Technology > $25K - CE
Jefferson State CC,513077,Home Depot U.S.A. Inc ,10/22/2021,194,R&R Jefferson Campus ,Maintenance & Repairs  - OOS
Jefferson State CC,513078,Home Depot U.S.A. Inc. ,10/22/2021,1898.47,Dual Enrollment  Sch. 2XX0-2XX1,Materials and Supplies - MS
Jefferson State CC,513079,nexAir LLC ,10/22/2021,4650,Dual Enrollment  Sch. 2XX9-2XX0,Equipment - non capitalized - MS
Jefferson State CC,513080,Office Depot ,10/22/2021,199,Dual Enrollment  Sch. 2XX0-2XX1,Materials and Supplies - MS
Jefferson State CC,513080,Office Depot ,10/22/2021,552.08,Unrestricted Jefferson Campus,Materials and Supplies - MS
Jefferson State CC,513080,Office Depot ,10/22/2021,232.14,Unrestricted Shared Services,Materials and Supplies - MS
Jefferson State CC,513080,Office Depot ,10/22/2021,446.75,Unrestricted Shelby Campus,Materials and Supplies - MS
Jefferson State CC,513081,Pocket Nurse Enterprises Inc. ,10/22/2021,6523.66,"William Ratliff, Jr Memorial Fund",Materials and Supplies - MS
Jefferson State CC,513082,Republic Services Inc. ,10/22/2021,79.23,Unrestricted St. Clair Campus,Waste Disposal - UC
Jefferson State CC,513083,Sherwin Williams Company ,10/22/2021,89.74,R&R Jefferson Campus ,Materials and Supplies - MS
Jefferson State CC,513084,Tri-County Turf Equipment ,10/22/2021,177.12,Unrestricted Jefferson Campus,Maintenance & Repairs  - OOS
Jefferson State CC,513085,Varsity Brands Holding Co. Inc. ,10/22/2021,11663.66,Unrestricted Shared Services,Materials and Supplies - MS
Jefferson State CC,516785,ACCS Human Resources Management Association ,10/25/2021,250,Unrestricted Shared Services,Memberships - PS
Jefferson State CC,516786,Alabama Power Company ,10/25/2021,682.41,Unrestricted St. Clair Campus,Electricity - UC
Jefferson State CC,516787,Alabama Power Company ,10/25/2021,38306.25,Unrestricted Jefferson Campus,Electricity - UC
Jefferson State CC,516788,Alabama Power Company ,10/25/2021,116.53,Unrestricted Chilton Campus,Electricity - UC
Jefferson State CC,516789,Alabama Power Company ,10/25/2021,3565.7,Unrestricted Chilton Campus,Electricity - UC
Jefferson State CC,516790,Alabama Power Company ,10/25/2021,15796.52,Unrestricted Chilton Campus,Electricity - UC
Jefferson State CC,516791,Alabama Power Company ,10/25/2021,1619.82,Unrestricted Chilton Campus,Water & Sewer - UC
Jefferson State CC,516792,Alabama Power Company ,10/25/2021,20303.52,Unrestricted Shelby Campus,Electricity - UC
Jefferson State CC,516793,Alabama Power Company ,10/25/2021,1289.33,Unrestricted Shelby Campus,Electricity - UC
Jefferson State CC,516794,Alabama Power Company ,10/25/2021,3072.73,Unrestricted Jefferson Campus,Electricity - UC
Jefferson State CC,516795,Alabama Skills USA Association ,10/25/2021,375,Unrestricted Shared Services,Memberships - PS
Jefferson State CC,516796,Berney Office Solutions LLC ,10/25/2021,4958.23,Unrestricted Shared Services,Other Contractual Services - PS
Jefferson State CC,516797,Birmingham Business Journal ,10/25/2021,85,Unrestricted Shared Services,Subscriptions - OOS
Jefferson State CC,516798,CDW Government Inc ,10/25/2021,17340.05,Unrestricted Chilton Campus,Technology $5K to $25K - CE
Jefferson State CC,516799,Chamberlain Cassandra,10/25/2021,94.69,Unrestricted Shelby Campus,Mileage - IS
Jefferson State CC,516800,Charter Communications Holdings LLC ,10/25/2021,122.98,Unrestricted Shared Services,Internet - UC
Jefferson State CC,516800,Charter Communications Holdings LLC ,10/25/2021,139.96,Unrestricted Shared Services,Landline Phones - UC
Jefferson State CC,516801,Clark Stacy,10/25/2021,84,Unrestricted Shelby Campus,Mileage - IS
Jefferson State CC,516802,Credentials Solutions LLC ,10/25/2021,440.2,Unrestricted Shared Services,Technology - non capitalized - MS
Jefferson State CC,516803,Creel Sarah,10/25/2021,47.04,Unrestricted Shelby Campus,Mileage - IS
Jefferson State CC,516804,Dawkins Stephen,10/25/2021,85.12,Unrestricted Shared Services,Mileage - IS
Jefferson State CC,516805,Edwards Beverly,10/25/2021,199.69,Unrestricted Shelby Campus,Mileage - IS
Jefferson State CC,516806,Fisher Scientific ,10/25/2021,58.23,Unrestricted Shelby Campus,Materials and Supplies - MS
Jefferson State CC,516807,Fisher Scientific ,10/25/2021,212.1,Unrestricted St. Clair Campus,Materials and Supplies - MS
Jefferson State CC,516808,Gilson Comapny Inc. ,10/25/2021,589.05,Building Science Technology,Materials and Supplies - MS
Jefferson State CC,516809,Ginas Gallow Elizabeth,10/25/2021,181.94,Unrestricted Shelby Campus,Mileage - IS
Jefferson State CC,516810,Hill Damita,10/25/2021,20.16,Unrestricted Shared Services,Mileage - IS
Jefferson State CC,516811,Home Depot U.S.A. Inc ,10/25/2021,880.04,Unrestricted Jefferson Campus,Materials and Supplies - MS
Jefferson State CC,516812,Jones Monique,10/25/2021,100,Sigma Kappa Delta,Deposit Liabilities - AP
Jefferson State CC,516813,Kin Amanda,10/25/2021,119.5,Unrestricted Shared Services,Conus (meals) - OS
Jefferson State CC,516813,Kin Amanda,10/25/2021,400.4,Unrestricted Shared Services,Lodging - OS
Jefferson State CC,516813,Kin Amanda,10/25/2021,406.22,Unrestricted Shared Services,Mileage - OS
Jefferson State CC,516813,Kin Amanda,10/25/2021,32,Unrestricted Shared Services,Other Travel Expenses - OS
Jefferson State CC,516814,Mantooth John,10/25/2021,900,Sigma Kappa Delta,Deposit Liabilities - AP
Jefferson State CC,516815,Mitchell Joseph,10/25/2021,15.29,Unrestricted Shared Services,Mileage - IS
Jefferson State CC,516816,Office Depot ,10/25/2021,31.46,Unrestricted Shared Services,Printing and Binding - OOS
Jefferson State CC,516817,Office Depot ,10/25/2021,228.29,Unrestricted Jefferson Campus,Materials and Supplies - MS
Jefferson State CC,516817,Office Depot ,10/25/2021,3202.83,Unrestricted Shared Services,Materials and Supplies - MS
Jefferson State CC,516817,Office Depot ,10/25/2021,-66.32,Unrestricted Shelby Campus,Materials and Supplies - MS
Jefferson State CC,516817,Office Depot ,10/25/2021,2677.54,Unrestricted Shared Services,Printing and Binding - OOS
Jefferson State CC,516818,Online Learning Consortium Inc ,10/25/2021,1530,Unrestricted Distance Ed,Memberships - PS
Jefferson State CC,516819,QM Quality Matters Inc ,10/25/2021,200,Unrestricted Distance Ed,Professional Development - PS
Jefferson State CC,516820,Ralya Janice,10/25/2021,47.02,Unrestricted Shared Services,Materials and Supplies - MS
Jefferson State CC,516821,Republic Services Inc. ,10/25/2021,1012.05,Unrestricted Jefferson Campus,Waste Disposal - UC
Jefferson State CC,516822,Robinson Darryl,10/25/2021,68.32,Unrestricted Shared Services,Mileage - IS
Jefferson State CC,516823,Shobe Phillip,10/25/2021,37.95,Unrestricted Shared Services,Other Legal Expenses - PS
Jefferson State CC,516824,Shuffett Wendy,10/25/2021,193.54,Unrestricted Shared Services,Mileage - IS
Jefferson State CC,516825,Stanley Nathaniel,10/25/2021,52.36,Unrestricted Shared Services,Mileage - IS
Jefferson State CC,516826,State of Alabama ,10/25/2021,14542,Unrestricted Shared Services,Insurance and Bonding - PS
Jefferson State CC,516827,State of Alabama ,10/25/2021,206369,Unrestricted Shared Services,Insurance and Bonding - PS
Jefferson State CC,516828,Stephens Nareiko,10/25/2021,247.5,Unrestricted Shared Services,Conus (meals) - OS
Jefferson State CC,516828,Stephens Nareiko,10/25/2021,831.08,Unrestricted Shared Services,Lodging - OS
Jefferson State CC,516828,Stephens Nareiko,10/25/2021,406.22,Unrestricted Shared Services,Mileage - OS
Jefferson State CC,516828,Stephens Nareiko,10/25/2021,100,Unrestricted Shared Services,Other Travel Expenses - OS
Jefferson State CC,516829,Sutton Edreama,10/25/2021,33.6,Unrestricted Shared Services,Mileage - IS
Jefferson State CC,516830,Swindall Amanda,10/25/2021,43,Unrestricted Shared Services,Mileage - IS
Jefferson State CC,516831,University of Alabama at Birmingham ,10/25/2021,4800,Unrestricted Shelby Campus,Other Contractual Services - PS
Jefferson State CC,516832,Verified Credentials Inc ,10/25/2021,400.2,Unrestricted Shared Services,Other Professional Fees - PS
Jefferson State CC,516833,W W Grainger Inc ,10/25/2021,9627.36,CRRSAA - HEERF II Institutional,Furniture and Equip $5K - $25K - CE
Jefferson State CC,516833,W W Grainger Inc ,10/25/2021,3218.15,Unrestricted Shelby Campus,Materials and Supplies - MS
Jefferson State CC,516834,Warren Germaine,10/25/2021,313.6,Unrestricted St. Clair Campus,Mileage - IS
Jefferson State CC,516835,Warrior Sign Source LLC ,10/25/2021,3200,City of Clanton-Heavy Equip Sim,Board of Adjustment Payments - PS
Jefferson State CC,516836,Water Works & Sewer Board ,10/25/2021,11879.74,Unrestricted Jefferson Campus,Water & Sewer - UC
Jefferson State CC,516837,ACCS President's Association ,10/26/2021,750,Unrestricted Shared Services,Memberships - PS
Jefferson State CC,516839,Alabama Power Company ,10/26/2021,9745.66,Unrestricted Jefferson Campus,Electricity - UC
Jefferson State CC,516839,Alabama Power Company ,10/26/2021,104.17,Unrestricted Shelby Campus,Electricity - UC
Jefferson State CC,516839,Alabama Power Company ,10/26/2021,8111.93,Unrestricted St. Clair Campus,Electricity - UC
Jefferson State CC,516840,Alabama Power Company ,10/26/2021,582.57,Unrestricted Jefferson Campus,Electricity - UC
Jefferson State CC,516841,Alabama Power Company ,10/26/2021,1624.97,Unrestricted Shelby Campus,Electricity - UC
Jefferson State CC,516842,Alcohol and Drug Abuse Council Inc. ,10/26/2021,877.2,Unrestricted Shared Services,Other Professional Fees - PS
Jefferson State CC,516843,ARCpoint Labs of Birmingham-Greystone ,10/26/2021,520,Unrestricted Shared Services,Other Professional Fees - PS
Jefferson State CC,516844,AT&T ,10/26/2021,362.05,Unrestricted Chilton Campus,Landline Phones - UC
Jefferson State CC,516844,AT&T ,10/26/2021,362.06,Unrestricted Jefferson Campus,Landline Phones - UC
Jefferson State CC,516844,AT&T ,10/26/2021,362.06,Unrestricted Shelby Campus,Landline Phones - UC
Jefferson State CC,516844,AT&T ,10/26/2021,362.06,Unrestricted St. Clair Campus,Landline Phones - UC
Jefferson State CC,516845,AT&T ,10/26/2021,50.93,Unrestricted Shelby Campus,Landline Phones - UC
Jefferson State CC,516846,AT&T ,10/26/2021,65.38,Unrestricted St. Clair Campus,Landline Phones - UC
Jefferson State CC,516847,AT&T ,10/26/2021,4484.16,Unrestricted Jefferson Campus,Wireless Phones - UC
Jefferson State CC,516849,Birmingham Business Journal ,10/26/2021,100,Unrestricted Shared Services,Subscriptions - OOS
Jefferson State CC,516850,Birmingham Parking Authority ,10/26/2021,5,AE-Federal Regular 2XX1-2XX2,Institutional Use - OOS
Jefferson State CC,516852,Carousel Industries of North America Inc ,10/26/2021,400,Unrestricted Shared Services,Service Contracts on Equipment -OOS
Jefferson State CC,516854,Center Point Fire District ,10/26/2021,25,Unrestricted Shared Services,Water & Sewer - UC
Jefferson State CC,516855,Charter Communications Holdings LLC ,10/26/2021,249.99,Unrestricted Shelby Campus,Internet - UC
Jefferson State CC,516856,City of Clanton ,10/26/2021,19.02,Unrestricted Chilton Campus,Water & Sewer - UC
Jefferson State CC,516857,City of Clanton ,10/26/2021,608.39,Unrestricted Chilton Campus,Water & Sewer - UC
Jefferson State CC,516858,City of Clanton ,10/26/2021,12.32,Unrestricted Chilton Campus,Water & Sewer - UC
Jefferson State CC,516859,Cohen Carnaggio Reynolds Inc ,10/26/2021,4903.36,R&R Jefferson Campus ,Construction in Progress - CE
Jefferson State CC,516860,EBSCO Industries Inc ,10/26/2021,1945,Unrestricted Shared Services,Technology - non capitalized - MS
Jefferson State CC,516862,Ginas Gallow Elizabeth,10/26/2021,77.95,Unrestricted Shared Services,Mileage - IS
Jefferson State CC,516867,Mu Alpha Theta National High School/Two-Yr Coll Math Honor ,10/26/2021,225,Mu Alpha Theta,Deposit Liabilities - AP
Jefferson State CC,516869,Shuffett Wendy,10/26/2021,72.58,Unrestricted Shared Services,Mileage - IS
Jefferson State CC,516870,Southwest Water Company ,10/26/2021,1630.8,Unrestricted Shelby Campus,Water & Sewer - UC
Jefferson State CC,516871,Stinson Sh'Nique,10/26/2021,62.91,Unrestricted Shared Services,Materials and Supplies - MS
Jefferson State CC,516873,Swindall Amanda,10/26/2021,38.86,Unrestricted St. Clair Campus,Materials and Supplies - MS
Jefferson State CC,516874,Water Works & Sewer Board ,10/26/2021,633.17,Unrestricted Jefferson Campus,Water & Sewer - UC
Jefferson State CC,516874,Water Works & Sewer Board ,10/26/2021,2087.36,Unrestricted Shelby Campus,Water & Sewer - UC
Jefferson State CC,516875,Williford Orman Construction LLC ,10/26/2021,87219,R&R Jefferson Campus ,Construction in Progress - CE
Jefferson State CC,516876,Avery III Edgar,10/27/2021,640,Unrestricted Jefferson Campus,Other Professional Fees - PS
Jefferson State CC,516877,Bailey Mark,10/27/2021,300,Unrestricted Shared Services,Overnight (non tax per diem)- IS
Jefferson State CC,516878,Blevins Chris,10/27/2021,300,Unrestricted Shelby Campus,Other Professional Fees - PS
Jefferson State CC,516879,Clackley David,10/27/2021,454.5,Unrestricted Chilton Campus,Other Professional Fees - PS
Jefferson State CC,516880,Deason Vicki,10/27/2021,357.78,Unrestricted Shared Services,Mileage - IS
Jefferson State CC,516881,Department Of Post Secondary Education ,10/27/2021,146565,Unrestricted Shared Services,ACCS Enhancement Fee Expense - OOS
Jefferson State CC,516881,Department Of Post Secondary Education ,10/27/2021,29188,Unrestricted Shared Services,Bond Reserve Fee Expense - OOS
Jefferson State CC,516882,Florence Jeffrey,10/27/2021,520,Unrestricted Shelby Campus,Other Professional Fees - PS
Jefferson State CC,516883,Golfstat Inc. ,10/27/2021,215,Unrestricted Shared Services,Other Professional Fees - PS
Jefferson State CC,516884,Harris Jason,10/27/2021,243,Unrestricted Chilton Campus,Other Professional Fees - PS
Jefferson State CC,516885,Heritage Christopher,10/27/2021,360,Unrestricted Chilton Campus,Other Professional Fees - PS
Jefferson State CC,516886,Janousek Mel,10/27/2021,120,Unrestricted Shelby Campus,Other Professional Fees - PS
Jefferson State CC,516887,Moten Roddrekus,10/27/2021,522,Unrestricted Chilton Campus,Other Professional Fees - PS
Jefferson State CC,516888,Mullins William,10/27/2021,200,Unrestricted Shelby Campus,Other Professional Fees - PS
Jefferson State CC,516889,Scarbrough William,10/27/2021,549,Unrestricted Chilton Campus,Other Professional Fees - PS
Jefferson State CC,516890,Shuffett Wendy,10/27/2021,87.58,Unrestricted Shared Services,Mileage - IS
Jefferson State CC,516891,Spire Alabama Inc. ,10/27/2021,53.47,Unrestricted Jefferson Campus,Gas & Heating Fuel - UC
Jefferson State CC,516892,Spire Alabama Inc. ,10/27/2021,9631.35,Unrestricted Chilton Campus,Gas & Heating Fuel - UC
Jefferson State CC,516892,Spire Alabama Inc. ,10/27/2021,18156.33,Unrestricted Jefferson Campus,Gas & Heating Fuel - UC
Jefferson State CC,516892,Spire Alabama Inc. ,10/27/2021,7056.78,Unrestricted Shelby Campus,Gas & Heating Fuel - UC
Jefferson State CC,516892,Spire Alabama Inc. ,10/27/2021,32.96,Unrestricted St. Clair Campus,Gas & Heating Fuel - UC
Jefferson State CC,516893,Stevens Qianna,10/27/2021,284.76,Unrestricted Shared Services,Mileage - IS
Jefferson State CC,516894,Water Works & Sewer Board ,10/27/2021,260.37,Unrestricted Jefferson Campus,Water & Sewer - UC
Jefferson State CC,516894,Water Works & Sewer Board ,10/27/2021,1607.27,Unrestricted Shelby Campus,Water & Sewer - UC
Jefferson State CC,516895,Wheeler Christopher,10/27/2021,505,Unrestricted Shelby Campus,Other Professional Fees - PS
Jefferson State CC,516896,White James,10/27/2021,320,Unrestricted Jefferson Campus,Other Professional Fees - PS
Jefferson State CC,516897,Whittle Christopher,10/27/2021,171,Unrestricted Chilton Campus,Other Professional Fees - PS
Jefferson State CC,516898,Williams Sonja,10/27/2021,373.35,Unrestricted Shared Services,Mileage - IS
Jefferson State CC,516899,Wilson Norman,10/27/2021,396,Unrestricted Chilton Campus,Other Professional Fees - PS
Jefferson State CC,208165,Starnes Jane,10/29/2021,2498.63,Unrestricted Shared Services,Payroll
Jefferson State CC,208166,Self Bonnie,10/29/2021,2456.75,Unrestricted Shared Services,Payroll
Jefferson State CC,208167,Harris Seena,10/29/2021,2162.33,Unrestricted Shared Services,Payroll
Jefferson State CC,208168,Wallace Preston,10/29/2021,2632.5,Unrestricted Shared Services,Payroll
Jefferson State CC,208169,Ray Beth,10/29/2021,1909.75,Unrestricted Shared Services,Payroll
Jefferson State CC,208170,Poe Ami,10/29/2021,1340.42,Unrestricted Shared Services,Payroll
Jefferson State CC,208171,Deason Vicki,10/29/2021,1420.29,Unrestricted Distance Ed,Payroll
Jefferson State CC,208172,McLendon Rita,10/29/2021,2078.13,Unrestricted Shared Services,Payroll
Jefferson State CC,208173,Cox Melanie,10/29/2021,2078.13,Unrestricted Shared Services,Payroll
Jefferson State CC,208174,Boackle Emil,10/29/2021,1741.75,Unrestricted Shared Services,Payroll
Jefferson State CC,208175,DeLoach Merissa,10/29/2021,1573.38,Unrestricted Shared Services,Payroll
Jefferson State CC,208176,Jackson Debra,10/29/2021,2078.13,Unrestricted Shared Services,Payroll
Jefferson State CC,208177,Braswell Gail,10/29/2021,1741.5,Unrestricted Shared Services,Payroll
Jefferson State CC,208178,Archer Teresa,10/29/2021,3124.41,Unrestricted Shared Services,Payroll
Jefferson State CC,208179,Hopkins Seantel,10/29/2021,1825.54,Unrestricted Shared Services,Payroll
Jefferson State CC,208180,Cheeks Tammara,10/29/2021,1320.75,CAPTE-WIOA 21-22,Payroll
Jefferson State CC,208181,Geralds Jacqueline,10/29/2021,2246.5,AE-State Regular 2XX1-2XX2,Payroll
Jefferson State CC,208182,Finch Tamara,10/29/2021,1363.04,Unrestricted Shared Services,Payroll
Jefferson State CC,208184,Coker Pamela,10/29/2021,1489.21,Unrestricted Shared Services,Payroll
Jefferson State CC,208185,Keenum Lisa,10/29/2021,2456.75,Unrestricted Shared Services,Payroll
Jefferson State CC,208186,Roseberry Tara,10/29/2021,1657.54,Unrestricted Shared Services,Payroll
Jefferson State CC,208187,Cruso Lisa,10/29/2021,2078.13,Unrestricted Shared Services,Payroll
Jefferson State CC,208188,Cooper Ginger,10/29/2021,2078.13,Unrestricted Shared Services,Payroll
Jefferson State CC,208189,Grady Octavia,10/29/2021,1573.38,Unrestricted Shared Services,Payroll
Jefferson State CC,208190,Naramore Anna,10/29/2021,1741.75,Unrestricted Shared Services,Payroll
Jefferson State CC,208191,Pugh Sandra,10/29/2021,2540.92,Unrestricted Shared Services,Payroll
Jefferson State CC,208192,Baker Precious,10/29/2021,1190.59,Unrestricted Shared Services,Payroll
Jefferson State CC,208193,Pickens Elizabeth,10/29/2021,2162.33,Unrestricted Shared Services,Payroll
Jefferson State CC,208194,Hughes Tina,10/29/2021,2246.5,Unrestricted Shared Services,Payroll
Jefferson State CC,208195,Jackson Courtney,10/29/2021,1404.96,Unrestricted Shared Services,Payroll
Jefferson State CC,208196,Turner Jeanie,10/29/2021,2402.02,Unrestricted Shared Services,Payroll
Jefferson State CC,208197,Thomas Donna,10/29/2021,4314.58,Unrestricted Shared Services,Payroll
Jefferson State CC,208198,Burney Roscelia,10/29/2021,2162.33,Unrestricted Shared Services,Payroll
Jefferson State CC,208199,Carpenter Valencia,10/29/2021,1951.96,Unrestricted Shared Services,Payroll
Jefferson State CC,208200,Castleberry James,10/29/2021,1320.75,Unrestricted Shared Services,Payroll
Jefferson State CC,208201,Collins Angela,10/29/2021,2372.5,Unrestricted Shared Services,Payroll
Jefferson State CC,208202,Duncan Leconyea,10/29/2021,1951.96,Unrestricted Shared Services,Payroll
Jefferson State CC,208203,Fennell Tapeka,10/29/2021,2077.88,Unrestricted Shared Services,Payroll
Jefferson State CC,208204,Foster Deborah,10/29/2021,1362.83,Unrestricted Shared Services,Payroll
Jefferson State CC,208205,Fraser Thompson Stacye,10/29/2021,2456.75,Unrestricted Shared Services,Payroll
Jefferson State CC,208206,Howard Amber,10/29/2021,1447.08,Unrestricted Shared Services,Payroll
Jefferson State CC,208207,Jones Juanita,10/29/2021,1951.96,Unrestricted Shared Services,Payroll
Jefferson State CC,208208,Kelley Pamela,10/29/2021,2669.94,Unrestricted Shared Services,Payroll
Jefferson State CC,208209,Minter Shondrika,10/29/2021,1236.71,Unrestricted Shared Services,Payroll
Jefferson State CC,208210,Pippens Amberetta,10/29/2021,2288.37,Unrestricted Shared Services,Payroll
Jefferson State CC,208211,Silor Virginia,10/29/2021,2583.04,Unrestricted Shared Services,Payroll
Jefferson State CC,208212,Sipe James,10/29/2021,1531.29,Unrestricted Shared Services,Payroll
Jefferson State CC,208213,Smith Heather,10/29/2021,2078.13,Unrestricted Shared Services,Payroll
Jefferson State CC,208214,Stevens Qianna,10/29/2021,2013.13,Unrestricted Shared Services,Payroll
Jefferson State CC,208215,Urbahns Laura,10/29/2021,2162.33,Unrestricted Shared Services,Payroll
Jefferson State CC,208216,Williams Sonja,10/29/2021,2235.48,Unrestricted Shared Services,Payroll
Jefferson State CC,208217,Chambers Lynn,10/29/2021,1909.75,AE-Federal Regular 2XX1-2XX2,Payroll
Jefferson State CC,208218,Harris John,10/29/2021,1681.35,Unrestricted Shared Services,Payroll
Jefferson State CC,208219,Hawkins Chelsie,10/29/2021,681.52,AE-State Regular 2XX1-2XX2,Payroll
Jefferson State CC,208219,Hawkins Chelsie,10/29/2021,681.52,Unrestricted Shared Services,Payroll
Jefferson State CC,208220,Anderson Laurel,10/29/2021,1404.96,Unrestricted Shared Services,Payroll
Jefferson State CC,208221,Clark Natalya,10/29/2021,1867.79,Unrestricted Shared Services,Payroll
Jefferson State CC,208222,Cobb Rose,10/29/2021,2330.25,Unrestricted Shared Services,Payroll
Jefferson State CC,208223,Dunning Freddie,10/29/2021,2540.92,Unrestricted Shared Services,Payroll
Jefferson State CC,208224,Ezell Laura,10/29/2021,1801.78,Unrestricted Shared Services,Payroll
Jefferson State CC,208225,Smith Lareatha,10/29/2021,2372.5,Unrestricted Shared Services,Payroll
Jefferson State CC,208226,Barranger Lauren,10/29/2021,1909.75,Unrestricted Shared Services,Payroll
Jefferson State CC,208227,Brown Cassandra,10/29/2021,1741.75,Unrestricted Shared Services,Payroll
Jefferson State CC,208228,Cimalore Beverly,10/29/2021,2372.5,Unrestricted Shared Services,Payroll
Jefferson State CC,208229,Culver Cynthia,10/29/2021,2555.96,Unrestricted Shared Services,Payroll
Jefferson State CC,208230,Fisher Debra,10/29/2021,2036.04,Unrestricted Shared Services,Payroll
Jefferson State CC,208231,Guizar Hector,10/29/2021,1489.21,Unrestricted Shared Services,Payroll
Jefferson State CC,208232,Hagood Anita,10/29/2021,1362.83,Unrestricted Shared Services,Payroll
Jefferson State CC,208233,Holman Beatrice,10/29/2021,1362.83,Unrestricted Shared Services,Payroll
Jefferson State CC,208234,Hyde Robert,10/29/2021,1068.5,Unrestricted Shared Services,Payroll
Jefferson State CC,208235,Lewis Scott,10/29/2021,1068.5,Unrestricted Shared Services,Payroll
Jefferson State CC,208236,Lopez Jorge,10/29/2021,1489.21,Unrestricted Shared Services,Payroll
Jefferson State CC,208237,Miller Stephanie,10/29/2021,2288.38,Unrestricted Shared Services,Payroll
Jefferson State CC,208238,Stewart Aaron,10/29/2021,1110.63,Unrestricted Shared Services,Payroll
Jefferson State CC,208239,Swann Christopher,10/29/2021,2078.13,Unrestricted Shared Services,Payroll
Jefferson State CC,208240,Wilson Colton,10/29/2021,1909.75,Unrestricted Shared Services,Payroll
Jefferson State CC,208241,Chamblin Juanita,10/29/2021,2288.38,Unrestricted Shared Services,Payroll
Jefferson State CC,208242,Key Karen,10/29/2021,2456.75,Unrestricted Shared Services,Payroll
Jefferson State CC,208243,Sutton Edreama,10/29/2021,2824.17,Unrestricted Shared Services,Payroll
Jefferson State CC,208244,Hamilton-Williams Margaret,10/29/2021,2162.33,Unrestricted Shared Services,Payroll
Jefferson State CC,208245,Kimble Lisa,10/29/2021,2246.29,Unrestricted Shared Services,Payroll
Jefferson State CC,208246,Cooper Jay,10/29/2021,1194.63,Unrestricted Shared Services,Payroll
Jefferson State CC,208247,Barnett C,10/29/2021,2162.33,Unrestricted Shared Services,Payroll
Jefferson State CC,208248,Borden Leslie,10/29/2021,1236.88,Unrestricted Shared Services,Payroll
Jefferson State CC,208249,Carson William,10/29/2021,1825.92,Unrestricted Shared Services,Payroll
Jefferson State CC,208250,Green Vincent,10/29/2021,1741.5,Unrestricted Shared Services,Payroll
Jefferson State CC,208251,Harris Michael,10/29/2021,1867.79,Unrestricted Shared Services,Payroll
Jefferson State CC,208252,James Selena,10/29/2021,1573.38,Unrestricted Shared Services,Payroll
Jefferson State CC,208253,McDonald Thomas,10/29/2021,2078.13,Unrestricted Shared Services,Payroll
Jefferson State CC,208254,Nathan Charlie,10/29/2021,1447.25,Unrestricted Shared Services,Payroll
Jefferson State CC,208255,Powrzanas Rodney,10/29/2021,1657.54,Unrestricted Shared Services,Payroll
Jefferson State CC,208256,Rogers Rodney,10/29/2021,1657.54,Unrestricted Shared Services,Payroll
Jefferson State CC,208257,Tidmore Cecil,10/29/2021,1825.92,Unrestricted Shared Services,Payroll
Jefferson State CC,208258,Toney Clifford,10/29/2021,2372.79,Unrestricted Shared Services,Payroll
Jefferson State CC,208259,Maddox Cynthia,10/29/2021,2246.5,Unrestricted Shared Services,Payroll
Jefferson State CC,208260,Sullivan Terri,10/29/2021,2162.33,Unrestricted Shared Services,Payroll
Jefferson State CC,208261,Brown Kenneth,10/29/2021,1160.38,Unrestricted Shared Services,Payroll
Jefferson State CC,208262,Cunningham Velma,10/29/2021,1615.63,Unrestricted Shared Services,Payroll
Jefferson State CC,208263,Eason Haley,10/29/2021,1236.71,Unrestricted Shared Services,Payroll
Jefferson State CC,208264,McCormack Phillip,10/29/2021,1573.38,Unrestricted Shared Services,Payroll
Jefferson State CC,208265,Payne Russell,10/29/2021,2372.5,Unrestricted Shared Services,Payroll
Jefferson State CC,208266,Pendleton Carolyn,10/29/2021,1011.17,Unrestricted Shared Services,Payroll
Jefferson State CC,208267,Purvis Larose,10/29/2021,1699.79,Unrestricted Shared Services,Payroll
Jefferson State CC,208268,Sanders Bernard,10/29/2021,1952.25,Unrestricted Shared Services,Payroll
Jefferson State CC,208269,Steele Kelvin,10/29/2021,1531.42,Unrestricted Shared Services,Payroll
Jefferson State CC,208270,Stockley Ginger,10/29/2021,2372.5,Unrestricted Shared Services,Payroll
Jefferson State CC,208271,Brown Mavis,10/29/2021,1194.75,Unrestricted Shared Services,Payroll
Jefferson State CC,208272,Cooper-Cox Robbie,10/29/2021,1363.04,Unrestricted Shared Services,Payroll
Jefferson State CC,208273,Crenshaw Lakeila,10/29/2021,1110.63,Unrestricted Shared Services,Payroll
Jefferson State CC,208274,Duchock Anita,10/29/2021,1363.04,Unrestricted Shared Services,Payroll
Jefferson State CC,208275,Johnson Gayle,10/29/2021,834.67,Unrestricted Shared Services,Payroll
Jefferson State CC,208276,Kimbrell Skyler,10/29/2021,1404.96,Unrestricted Shared Services,Payroll
Jefferson State CC,208277,King Linda,10/29/2021,1068.5,Unrestricted Shared Services,Payroll
Jefferson State CC,208278,Lattimore Rosetta,10/29/2021,1152.67,Unrestricted Shared Services,Payroll
Jefferson State CC,208279,Liddle Christiana,10/29/2021,1152.67,Unrestricted Shared Services,Payroll
Jefferson State CC,208280,Mathis Brenda,10/29/2021,1531.42,Unrestricted Shared Services,Payroll
Jefferson State CC,208281,Vann Rowella,10/29/2021,1110.63,Unrestricted Shared Services,Payroll
Jefferson State CC,208282,Washington Destin,10/29/2021,1531.42,Unrestricted Shared Services,Payroll
Jefferson State CC,208283,Freeman Robine,10/29/2021,1910.17,Unrestricted Shared Services,Payroll
Jefferson State CC,208284,Kent Eric,10/29/2021,1068.5,Unrestricted Shared Services,Payroll
Jefferson State CC,208285,Wynn Michael,10/29/2021,1363.04,Unrestricted Shared Services,Payroll
Jefferson State CC,208286,Pettry Sherry,10/29/2021,2246.5,Unrestricted Shared Services,Payroll
Jefferson State CC,208287,Abad Fortunato,10/29/2021,801.12,Unrestricted Shared Services,Payroll
Jefferson State CC,208288,Bizzell Dorothy,10/29/2021,1502.1,Unrestricted Shared Services,Payroll
Jefferson State CC,208289,Boland Keema,10/29/2021,801.12,Unrestricted Shared Services,Payroll
Jefferson State CC,208290,Bradshaw Lauren,10/29/2021,400.56,Unrestricted Shared Services,Payroll
Jefferson State CC,208291,Brown Jason,10/29/2021,333.8,Unrestricted Shared Services,Payroll
Jefferson State CC,208292,Brown Josephine,10/29/2021,534.08,Unrestricted Shared Services,Payroll
Jefferson State CC,208293,Campbell Mae,10/29/2021,1235.06,Unrestricted Shared Services,Payroll
Jefferson State CC,208294,Chen Ja Lin,10/29/2021,33.38,Unrestricted Shared Services,Payroll
Jefferson State CC,208295,Coleman Carolyn,10/29/2021,801.12,Unrestricted Shared Services,Payroll
Jefferson State CC,208296,Cook Rachel,10/29/2021,333.8,Unrestricted Shared Services,Payroll
Jefferson State CC,208297,Cunningham Dana,10/29/2021,1268.44,Unrestricted Shared Services,Payroll
Jefferson State CC,208298,Dailey Gabriele,10/29/2021,1268.44,Unrestricted Shared Services,Payroll
Jefferson State CC,208299,Duplantis Kevin,10/29/2021,667.6,Unrestricted Shared Services,Payroll
Jefferson State CC,208300,Dykes Betty,10/29/2021,570,Unrestricted Shared Services,Payroll
Jefferson State CC,208301,Edwards Melanie,10/29/2021,801.12,Unrestricted Shared Services,Payroll
Jefferson State CC,208302,Ellis April,10/29/2021,667.6,Unrestricted Shared Services,Payroll
Jefferson State CC,208303,Fitts Alexaundria,10/29/2021,400.56,Unrestricted Shared Services,Payroll
Jefferson State CC,208304,Floyd Natalie,10/29/2021,387.21,Unrestricted Shared Services,Payroll
Jefferson State CC,208305,Foshee Kathryn,10/29/2021,400.56,Unrestricted Shared Services,Payroll
Jefferson State CC,208306,Gomez Joseph,10/29/2021,300.42,Unrestricted Shared Services,Payroll
Jefferson State CC,208307,Gonzalez Danielle,10/29/2021,1485.41,Unrestricted Shared Services,Payroll
Jefferson State CC,208308,Hall Daniel,10/29/2021,801.12,Unrestricted Shared Services,Payroll
Jefferson State CC,208309,Ham Lora,10/29/2021,400.56,Unrestricted Shared Services,Payroll
Jefferson State CC,208310,Harper Charman,10/29/2021,834.5,Unrestricted Shared Services,Payroll
Jefferson State CC,208311,Hart Melody,10/29/2021,1268.44,Unrestricted Shared Services,Payroll
Jefferson State CC,208312,Hayes Samantha,10/29/2021,400.56,Unrestricted Shared Services,Payroll
Jefferson State CC,208313,Haynes Christal,10/29/2021,600.84,Unrestricted Shared Services,Payroll
Jefferson State CC,208314,Hollingsworth Jasmine,10/29/2021,1068.16,Unrestricted Shared Services,Payroll
Jefferson State CC,208315,Johns Rachel,10/29/2021,1001.4,Unrestricted Shared Services,Payroll
Jefferson State CC,208316,Jones Christina,10/29/2021,1518.79,Unrestricted Shared Services,Payroll
Jefferson State CC,208317,Jones D'Angelo,10/29/2021,1568.86,Unrestricted Shared Services,Payroll
Jefferson State CC,208318,Keith Leigh,10/29/2021,700.98,Unrestricted Shared Services,Payroll
Jefferson State CC,208319,King Sandra,10/29/2021,367.18,Unrestricted Shared Services,Payroll
Jefferson State CC,208320,Latham Jessica,10/29/2021,333.8,Unrestricted Shared Services,Payroll
Jefferson State CC,208321,Liddle Anna,10/29/2021,650.91,Unrestricted Shared Services,Payroll
Jefferson State CC,208322,McEntire Ann,10/29/2021,1101.54,Unrestricted Shared Services,Payroll
Jefferson State CC,208323,McKenzie Courtney,10/29/2021,1268.44,Unrestricted Shared Services,Payroll
Jefferson State CC,208324,Milam Toshia,10/29/2021,1101.54,Unrestricted Shared Services,Payroll
Jefferson State CC,208325,Miller Shaleen,10/29/2021,534.08,Unrestricted Shared Services,Payroll
Jefferson State CC,208326,Morgan Zachary,10/29/2021,867.88,Unrestricted Shared Services,Payroll
Jefferson State CC,208327,Mullins Kaitlin,10/29/2021,1068.16,Unrestricted Shared Services,Payroll
Jefferson State CC,208328,Oberman Allison,10/29/2021,333.8,Unrestricted Shared Services,Payroll
Jefferson State CC,208329,Odom Donna,10/29/2021,667.6,Unrestricted Shared Services,Payroll
Jefferson State CC,208330,Pair Edward,10/29/2021,984.71,Unrestricted Shared Services,Payroll
Jefferson State CC,208331,Pickett Kimberly,10/29/2021,1268.44,Unrestricted Shared Services,Payroll
Jefferson State CC,208332,Roache Champagne,10/29/2021,1235.06,Unrestricted Shared Services,Payroll
Jefferson State CC,208333,Saemaldaher Melanie,10/29/2021,968.02,Unrestricted Shared Services,Payroll
Jefferson State CC,208334,Sasser Carol,10/29/2021,1268.44,Unrestricted Shared Services,Payroll
Jefferson State CC,208335,Self Allison,10/29/2021,1268.44,Unrestricted Shared Services,Payroll
Jefferson State CC,208336,Skanes Makeya,10/29/2021,267.04,Unrestricted Shared Services,Payroll
Jefferson State CC,208337,Smith Kandice,10/29/2021,570,Unrestricted Shared Services,Payroll
Jefferson State CC,208338,Snipes Britney,10/29/2021,634.22,Unrestricted Shared Services,Payroll
Jefferson State CC,208339,Stapleton Emily,10/29/2021,400.56,Unrestricted Shared Services,Payroll
Jefferson State CC,208340,Thomaston Anne,10/29/2021,400.56,Unrestricted Shared Services,Payroll
Jefferson State CC,208341,Tilt Alex,10/29/2021,233.66,Unrestricted Shared Services,Payroll
Jefferson State CC,208342,Walker Shelby,10/29/2021,1268.44,Unrestricted Shared Services,Payroll
Jefferson State CC,208343,Williams Ashley,10/29/2021,600.84,Unrestricted Shared Services,Payroll
Jefferson State CC,208344,Wilson Jada,10/29/2021,968.02,Unrestricted Shared Services,Payroll
Jefferson State CC,208345,Hackney Natalie,10/29/2021,792,Unrestricted Shared Services,Payroll
Jefferson State CC,208346,Jones Marvin,10/29/2021,1254,Unrestricted Jefferson Campus,Payroll
Jefferson State CC,208347,Yates Lanette,10/29/2021,561,Unrestricted Shared Services,Payroll
Jefferson State CC,208348,Harvey Richard,10/29/2021,1135.04,Unrestricted Shared Services,Payroll
Jefferson State CC,208349,Haywood James,10/29/2021,1143.24,Unrestricted Shared Services,Payroll
Jefferson State CC,208350,Johnson Matthew,10/29/2021,1034.36,Unrestricted Shared Services,Payroll
Jefferson State CC,208351,McDonnell Kyle,10/29/2021,1347.86,Unrestricted Shared Services,Payroll
Jefferson State CC,208352,Nabors Stephen,10/29/2021,517.18,Unrestricted Shared Services,Payroll
Jefferson State CC,208353,Panepento Matthew,10/29/2021,1034.36,Unrestricted Shared Services,Payroll
Jefferson State CC,208354,Ward William,10/29/2021,1007.14,Unrestricted Shared Services,Payroll
Jefferson State CC,208355,Brantley Karlie,10/29/2021,400.56,Unrestricted Shared Services,Payroll
Jefferson State CC,208356,Carroll Elizabeth,10/29/2021,1068.16,Unrestricted Shared Services,Payroll
Jefferson State CC,208357,Brooks Erica,10/29/2021,975,Unrestricted Shelby Campus,Payroll
Jefferson State CC,208358,Chesser Jennifer,10/29/2021,950,Unrestricted Shared Services,Payroll
Jefferson State CC,208359,Johnson-King Sharina,10/29/2021,950,Unrestricted Shared Services,Payroll
Jefferson State CC,208360,McCurdy Akia,10/29/2021,675,Unrestricted Shelby Campus,Payroll
Jefferson State CC,208361,Smith Lisa,10/29/2021,950,Unrestricted Shared Services,Payroll
Jefferson State CC,208362,Fletcher La'Toya,10/29/2021,998.4,Unrestricted Shared Services,Payroll
Jefferson State CC,208363,Stephens Sheila,10/29/2021,1027.52,Unrestricted Shared Services,Payroll
Jefferson State CC,208364,Agee Teisha,10/29/2021,950,CAPTE-WIOA 21-22,Payroll
Jefferson State CC,208365,Anderson LaToya,10/29/2021,422.8,AE-State Regular 2XX1-2XX2,Payroll
Jefferson State CC,208366,Arrowsmith Janice,10/29/2021,803.32,AE-Federal Regular 2XX1-2XX2,Payroll
Jefferson State CC,208367,Badio Jessical,10/29/2021,761.04,AE-Federal Regular 2XX1-2XX2,Payroll
Jefferson State CC,208368,Barnett Laura,10/29/2021,803.32,AE-State Regular 2XX1-2XX2,Payroll
Jefferson State CC,208369,Blackmon Archie,10/29/2021,803.32,AE-Federal Regular 2XX1-2XX2,Payroll
Jefferson State CC,208370,Brown Edith,10/29/2021,676.48,AE-State Regular 2XX1-2XX2,Payroll
Jefferson State CC,208371,Callins Lillian,10/29/2021,475.65,AE-Federal Regular 2XX1-2XX2,Payroll
Jefferson State CC,208372,Cochis Angela,10/29/2021,295.96,AE-Federal Regular 2XX1-2XX2,Payroll
Jefferson State CC,208373,Coleman Henry,10/29/2021,803.32,AE-Federal Regular 2XX1-2XX2,Payroll
Jefferson State CC,208374,Cook Kimberly,10/29/2021,803.32,AE-State Regular 2XX1-2XX2,Payroll
Jefferson State CC,208375,Davis Jeffrey,10/29/2021,880.32,AE-State Regular 2XX1-2XX2,Payroll
Jefferson State CC,208376,Eichhorn Rhonda,10/29/2021,528.5,AE-State Regular 2XX1-2XX2,Payroll
Jefferson State CC,208377,Hammonds Cindy,10/29/2021,761.04,AE-Federal Regular 2XX1-2XX2,Payroll
Jefferson State CC,208378,Hawkins Felita,10/29/2021,684,AE-State Regular 2XX1-2XX2,Payroll
Jefferson State CC,208379,Malone Valencia,10/29/2021,803.32,AE-State Regular 2XX1-2XX2,Payroll
Jefferson State CC,208380,Markovitz Yevonne,10/29/2021,803.32,AE-State Regular 2XX1-2XX2,Payroll
Jefferson State CC,208381,Merritt Adrienne,10/29/2021,592.8,AE-Federal Regular 2XX1-2XX2,Payroll
Jefferson State CC,208382,Morgan Mary,10/29/2021,591.92,AE - State Inst'l 2XX1-2XX2,Payroll
Jefferson State CC,208383,Oberneder Connie,10/29/2021,401.66,AE-State Regular 2XX1-2XX2,Payroll
Jefferson State CC,208384,Parr Michele,10/29/2021,739.9,AE-State Regular 2XX1-2XX2,Payroll
Jefferson State CC,208385,Pearson Regina,10/29/2021,592.8,AE-State Regular 2XX1-2XX2,Payroll
Jefferson State CC,208386,Riggins Resha,10/29/2021,380.52,AE-State Regular 2XX1-2XX2,Payroll
Jefferson State CC,208387,Roberts Barbara,10/29/2021,190.26,AE-State Regular 2XX1-2XX2,Payroll
Jefferson State CC,208388,Rudd Julia,10/29/2021,697.62,AE-State Regular 2XX1-2XX2,Payroll
Jefferson State CC,208389,Sanders Anthony Michael,10/29/2021,803.32,AE-Federal Regular 2XX1-2XX2,Payroll
Jefferson State CC,208390,Sheikh Linda,10/29/2021,528.5,AE-State Regular 2XX1-2XX2,Payroll
Jefferson State CC,208391,Shorter Wanda,10/29/2021,845.6,AE-Federal Regular 2XX1-2XX2,Payroll
Jefferson State CC,208392,Skalac Robyn,10/29/2021,253.68,AE-State Regular 2XX1-2XX2,Payroll
Jefferson State CC,208393,Snider Charles,10/29/2021,862.92,AE-State Regular 2XX1-2XX2,Payroll
Jefferson State CC,208394,Spraberry Mollie,10/29/2021,742.77,AE-State Regular 2XX1-2XX2,Payroll
Jefferson State CC,208395,Sweatt Helen,10/29/2021,591.92,AE-State Regular 2XX1-2XX2,Payroll
Jefferson State CC,208396,Tucker Selesta,10/29/2021,190.26,AE-State Regular 2XX1-2XX2,Payroll
Jefferson State CC,208397,Vinson Phyllis,10/29/2021,718.76,AE-State Regular 2XX1-2XX2,Payroll
Jefferson State CC,208398,Wiginton Beverly,10/29/2021,591.92,AE-State Regular 2XX1-2XX2,Payroll
Jefferson State CC,208399,Wood Gayle,10/29/2021,169.12,AE-State Regular 2XX1-2XX2,Payroll
Jefferson State CC,208400,Wren Walter,10/29/2021,211.4,AE-State Regular 2XX1-2XX2,Payroll
Jefferson State CC,208401,Breaux Carolyn,10/29/2021,592.04,Unrestricted Shared Services,Payroll
Jefferson State CC,208402,Foster Richard,10/29/2021,553.28,Unrestricted Shared Services,Payroll
Jefferson State CC,208403,Frank Theresa,10/29/2021,553.28,Unrestricted Shared Services,Payroll
Jefferson State CC,208404,Smith Victoria,10/29/2021,498.56,Unrestricted Shared Services,Payroll
Jefferson State CC,208405,Charping Ronda,10/29/2021,1135.68,Unrestricted Shared Services,Payroll
Jefferson State CC,208406,Armstrong Adell,10/29/2021,570,Unrestricted Shared Services,Payroll
Jefferson State CC,208407,Begnaud Phillip,10/29/2021,1216,Unrestricted Shared Services,Payroll
Jefferson State CC,208408,O'Hern David,10/29/2021,555,Unrestricted Shared Services,Payroll
Jefferson State CC,208409,Addington Jennifer,10/29/2021,1580.8,Unrestricted Shared Services,Payroll
Jefferson State CC,208410,Ashline Kasey,10/29/2021,332.8,Unrestricted Shared Services,Payroll
Jefferson State CC,208411,Baldwin Gennia,10/29/2021,249.6,Unrestricted Shared Services,Payroll
Jefferson State CC,208412,Barnes Wilbert,10/29/2021,416,Unrestricted Shared Services,Payroll
Jefferson State CC,208413,Barnett Chesca,10/29/2021,312,Unrestricted Shared Services,Payroll
Jefferson State CC,208414,Bishop Patrick,10/29/2021,249.6,Unrestricted Shared Services,Payroll
Jefferson State CC,208415,Burgess Laura,10/29/2021,499.2,Unrestricted Shared Services,Payroll
Jefferson State CC,208416,Chappel Delena,10/29/2021,582.4,Unrestricted Shared Services,Payroll
Jefferson State CC,208417,Cobb Jonathan,10/29/2021,416,Unrestricted Shared Services,Payroll
Jefferson State CC,208418,Crump Kimberly,10/29/2021,915.2,Unrestricted Shared Services,Payroll
Jefferson State CC,208419,Franklin Alicia,10/29/2021,249.6,Unrestricted Shared Services,Payroll
Jefferson State CC,208420,Gray Lisa,10/29/2021,249.6,Unrestricted Shared Services,Payroll
Jefferson State CC,208421,Hollingsworth Donna,10/29/2021,1341.6,Unrestricted Shared Services,Payroll
Jefferson State CC,208422,Marshall Tommisene,10/29/2021,249.6,Unrestricted Shared Services,Payroll
Jefferson State CC,208423,McLain Christine,10/29/2021,1383.2,Women's Fund Rapid Response,Payroll
Jefferson State CC,208424,Mills Justin,10/29/2021,499.2,Unrestricted Shared Services,Payroll
Jefferson State CC,208425,Parker Lakisha,10/29/2021,582.4,Unrestricted Shared Services,Payroll
Jefferson State CC,208426,Payne Angela,10/29/2021,1330,Unrestricted Shared Services,Payroll
Jefferson State CC,208427,Payne Natalya,10/29/2021,451.5,Unrestricted Shared Services,Payroll
Jefferson State CC,208428,Purdy Zane,10/29/2021,249.6,Unrestricted Shared Services,Payroll
Jefferson State CC,208429,Roan Carl,10/29/2021,582.4,Field Engineering Training 2020-068,Payroll
Jefferson State CC,208430,Robinson Jonathon,10/29/2021,499.2,Unrestricted Shared Services,Payroll
Jefferson State CC,208431,Russell Jackie,10/29/2021,374.4,Unrestricted Shared Services,Payroll
Jefferson State CC,208432,Russell Stephanie,10/29/2021,1331.2,Unrestricted Shared Services,Payroll
Jefferson State CC,208433,Sloan Kevin,10/29/2021,332.8,Unrestricted Shared Services,Payroll
Jefferson State CC,208434,Smith Janine,10/29/2021,499.2,Unrestricted Shared Services,Payroll
Jefferson State CC,208435,Strouss Lauren,10/29/2021,665.6,Unrestricted Shared Services,Payroll
Jefferson State CC,208436,Suttle Debra,10/29/2021,1289.6,Unrestricted Shared Services,Payroll
Jefferson State CC,208437,Sutton James,10/29/2021,374.4,Unrestricted Shared Services,Payroll
Jefferson State CC,208438,Thomas Linda,10/29/2021,624,Unrestricted Shared Services,Payroll
Jefferson State CC,208439,Travis Adrienne,10/29/2021,240,Unrestricted Shared Services,Payroll
Jefferson State CC,208440,Washington Ellise,10/29/2021,499.2,Unrestricted Shared Services,Payroll
Jefferson State CC,208441,Willis Erica,10/29/2021,249.6,Unrestricted Shared Services,Payroll
Jefferson State CC,208442,Winborn Jennifer,10/29/2021,499.2,Unrestricted Shared Services,Payroll
Jefferson State CC,208443,Busby Yvette,10/29/2021,975,Unrestricted Shared Services,Payroll
Jefferson State CC,208444,Jones Lesia,10/29/2021,570,Unrestricted Shared Services,Payroll
Jefferson State CC,208445,Glover Anita,10/29/2021,604.82,Unrestricted Shared Services,Payroll
Jefferson State CC,208446,Moore Kimberly,10/29/2021,548.68,Unrestricted Shared Services,Payroll
Jefferson State CC,208447,Stewart Janice,10/29/2021,529.76,Unrestricted Shared Services,Payroll
Jefferson State CC,208448,Amerson-Dobbs Jessica,10/29/2021,430.5,Unrestricted Shared Services,Payroll
Jefferson State CC,208449,Cannon Kimberly,10/29/2021,399,Unrestricted Shared Services,Payroll
Jefferson State CC,208450,Dancy Darryl,10/29/2021,430.5,Unrestricted Shared Services,Payroll
Jefferson State CC,208451,Grayson Shirley,10/29/2021,199.5,Unrestricted Shared Services,Payroll
Jefferson State CC,208452,Gumbs Andrea,10/29/2021,441,Unrestricted Shared Services,Payroll
Jefferson State CC,208453,Moore Shanine,10/29/2021,592.04,Unrestricted Shared Services,Payroll
Jefferson State CC,208454,Newman Stephanie,10/29/2021,294,Unrestricted Shared Services,Payroll
Jefferson State CC,208455,Payne Adrian,10/29/2021,430.5,Unrestricted Shared Services,Payroll
Jefferson State CC,208456,Wood Kelly,10/29/2021,483,Unrestricted Shared Services,Payroll
Jefferson State CC,208457,Liddle Elizabeth,10/29/2021,660,Unrestricted Shared Services,Payroll
Jefferson State CC,208458,Wilson Candace,10/29/2021,399,Unrestricted Shared Services,Payroll
Jefferson State CC,208459,Allen Felicia,10/29/2021,409.5,Unrestricted Shared Services,Payroll
Jefferson State CC,208460,Allen Vicki,10/29/2021,399,Unrestricted Shared Services,Payroll
Jefferson State CC,208461,Anderson Davida,10/29/2021,399,Unrestricted Shared Services,Payroll
Jefferson State CC,208462,Blankenship Jamie,10/29/2021,462,Unrestricted Shared Services,Payroll
Jefferson State CC,208463,Carlee Jerrica,10/29/2021,570,Unrestricted Shared Services,Payroll
Jefferson State CC,208464,Carruba Lorrie,10/29/2021,399,Unrestricted Shared Services,Payroll
Jefferson State CC,208465,Dunning William,10/29/2021,441,Unrestricted Shared Services,Payroll
Jefferson State CC,208466,Duren Courtney,10/29/2021,210,Unrestricted Shared Services,Payroll
Jefferson State CC,208467,Edwards Tracy,10/29/2021,315,Unrestricted Shared Services,Payroll
Jefferson State CC,208468,Franklin Gillian,10/29/2021,357,Unrestricted Shared Services,Payroll
Jefferson State CC,208469,Greene Greta,10/29/2021,399,Unrestricted Shared Services,Payroll
Jefferson State CC,208470,Jones Meldryn,10/29/2021,472.5,Unrestricted Shared Services,Payroll
Jefferson State CC,208471,Key Jacob,10/29/2021,454.13,Unrestricted Shared Services,Payroll
Jefferson State CC,208472,Kirkland Olivia,10/29/2021,570,Unrestricted Shared Services,Payroll
Jefferson State CC,208473,Marbury Patricia,10/29/2021,570,Unrestricted Shared Services,Payroll
Jefferson State CC,208474,Morgan Rickey,10/29/2021,378,Unrestricted Shared Services,Payroll
Jefferson State CC,208475,Putnam Patricia,10/29/2021,1216,Unrestricted Shared Services,Payroll
Jefferson State CC,208476,Rheaume Stephanie,10/29/2021,399,Unrestricted Shared Services,Payroll
Jefferson State CC,208477,Saylor Cleanese,10/29/2021,399,Unrestricted Shared Services,Payroll
Jefferson State CC,208478,Smith Khalilah,10/29/2021,570,Unrestricted Shared Services,Payroll
Jefferson State CC,208479,White Sandra,10/29/2021,336,Unrestricted Shared Services,Payroll
Jefferson State CC,208480,Wilson Courtney,10/29/2021,312.38,Unrestricted Shared Services,Payroll
Jefferson State CC,208481,Zandi Nader,10/29/2021,1216,Unrestricted Shared Services,Payroll
Jefferson State CC,208482,Adams Floyce,10/29/2021,570,Unrestricted Shared Services,Payroll
Jefferson State CC,208483,Ali Donna,10/29/2021,630,Unrestricted Shared Services,Payroll
Jefferson State CC,208484,Bell LaQueon,10/29/2021,162,CAPTE-WIOA 21-22,Payroll
Jefferson State CC,208485,Griffin Takerra,10/29/2021,513,CAPTE-WIOA 21-22,Payroll
Jefferson State CC,208486,Hampton Jacqueline,10/29/2021,399,Unrestricted Shared Services,Payroll
Jefferson State CC,208487,McRae Kenneth,10/29/2021,803.32,AE-Federal Regular 2XX1-2XX2,Payroll
Jefferson State CC,208488,Robinson Mattie,10/29/2021,570,Unrestricted Shared Services,Payroll
Jefferson State CC,208489,Brown-Ward Maurita,10/29/2021,414.75,Unrestricted Shared Services,Payroll
Jefferson State CC,208490,Crim Margaret,10/29/2021,665.6,Unrestricted Shared Services,Payroll
Jefferson State CC,208491,Kirk Willodean,10/29/2021,299.25,Unrestricted Shared Services,Payroll
Jefferson State CC,208492,Lewis Stephanie,10/29/2021,420,Unrestricted Shared Services,Payroll
Jefferson State CC,208493,Prevo Deborah,10/29/2021,540,Unrestricted Shared Services,Payroll
Jefferson State CC,208494,Gillham Martha,10/29/2021,475,Unrestricted Shared Services,Payroll
Jefferson State CC,208495,Balog Adam,10/29/2021,336,Unrestricted Shared Services,Payroll
Jefferson State CC,208496,Burton Kenneth,10/29/2021,510,Unrestricted Shared Services,Payroll
Jefferson State CC,208497,Chandler James,10/29/2021,341.25,Unrestricted Shared Services,Payroll
Jefferson State CC,208498,Channel Raymond,10/29/2021,555,Unrestricted Shared Services,Payroll
Jefferson State CC,208499,Cornner Thaddeus,10/29/2021,135,Unrestricted Shared Services,Payroll
Jefferson State CC,208500,Crowe Jeffrey,10/29/2021,390,Unrestricted Shared Services,Payroll
Jefferson State CC,208501,Gibbs John,10/29/2021,480,Unrestricted Shared Services,Payroll
Jefferson State CC,208502,Harrell John,10/29/2021,288.75,Unrestricted Shared Services,Payroll
Jefferson State CC,208503,Harrell Ramona,10/29/2021,399,Unrestricted Shared Services,Payroll
Jefferson State CC,208504,Hedrick Charles,10/29/2021,510,Unrestricted Shared Services,Payroll
Jefferson State CC,208505,Hicks Alan,10/29/2021,720,Unrestricted Shared Services,Payroll
Jefferson State CC,208506,Lovelace Michael,10/29/2021,712.5,Unrestricted Shared Services,Payroll
Jefferson State CC,208507,Shobe Phillip,10/29/2021,870,Unrestricted Shared Services,Payroll
Jefferson State CC,208508,Shorter Garland,10/29/2021,525,Unrestricted Shared Services,Payroll
Jefferson State CC,208509,Turner Yolanda,10/29/2021,336,Unrestricted Shared Services,Payroll
Jefferson State CC,208510,Partain Mark,10/29/2021,720,Unrestricted Shelby Campus,Payroll
Jefferson State CC,208511,Steele Pamela,10/29/2021,475,Unrestricted Shared Services,Payroll
Jefferson State CC,208512,Burge Kathy,10/29/2021,451.5,Unrestricted Shared Services,Payroll
Jefferson State CC,208513,Palmore Myra,10/29/2021,278.25,Unrestricted Shared Services,Payroll
Jefferson State CC,208514,Partain Daniel,10/29/2021,378,Unrestricted Shared Services,Payroll
Jefferson State CC,208515,Brown Keith,10/29/2021,18333.33,Unrestricted Shared Services,Payroll
Jefferson State CC,208516,Bonds Amanda,10/29/2021,6136,Unrestricted Chilton Campus,Payroll
Jefferson State CC,208517,Cabaniss Amanda,10/29/2021,6796,Unrestricted Shelby Campus,Payroll
Jefferson State CC,208518,Clifton Teresa,10/29/2021,6796,Unrestricted Shelby Campus,Payroll
Jefferson State CC,208519,Craven Kimberly,10/29/2021,8181.33,Unrestricted St. Clair Campus,Payroll
Jefferson State CC,208520,Cuevas Jennifer,10/29/2021,6494.74,Unrestricted Shared Services,Payroll
Jefferson State CC,208521,Daffron Cristy,10/29/2021,8581.33,Unrestricted St. Clair Campus,Payroll
Jefferson State CC,208522,Ferguson Ladeitris,10/29/2021,7510.67,Unrestricted Shelby Campus,Payroll
Jefferson State CC,208523,Forbes Christopher,10/29/2021,8078.33,Unrestricted Chilton Campus,Payroll
Jefferson State CC,208524,French Kimberly,10/29/2021,7678.33,Unrestricted Jefferson Campus,Payroll
Jefferson State CC,208525,Grimes Natasha,10/29/2021,6494.74,Unrestricted Shared Services,Payroll
Jefferson State CC,208526,Havard Patricia,10/29/2021,9354.89,Unrestricted Shelby Campus,Payroll
Jefferson State CC,208527,Haywood Patricia,10/29/2021,8684.33,Unrestricted Shelby Campus,Payroll
Jefferson State CC,208528,Hicks Stacy,10/29/2021,7678.33,Unrestricted Jefferson Campus,Payroll
Jefferson State CC,208529,Hill Cynthia,10/29/2021,6796,Unrestricted Jefferson Campus,Payroll
Jefferson State CC,208530,Jones Julie,10/29/2021,8181.33,Unrestricted Chilton Campus,Payroll
Jefferson State CC,208531,Keene Jeremy,10/29/2021,6125.44,Unrestricted Jefferson Campus,Payroll
Jefferson State CC,208532,Lee Donna,10/29/2021,8181.33,Unrestricted Shelby Campus,Payroll
Jefferson State CC,208533,Naramore Anita,10/29/2021,8581.33,Unrestricted Shelby Campus,Payroll
Jefferson State CC,208534,Nasworthy Sara,10/29/2021,8181.33,Unrestricted Shared Services,Payroll
Jefferson State CC,208535,O'Neal Brenda,10/29/2021,9947.17,Unrestricted Shared Services,Payroll
Jefferson State CC,208536,Parker Amber,10/29/2021,7175.33,Unrestricted Jefferson Campus,Payroll
Jefferson State CC,208537,Richardson Gena,10/29/2021,8684.33,Unrestricted Shelby Campus,Payroll
Jefferson State CC,208538,Rowe Tina,10/29/2021,7678.33,Unrestricted Chilton Campus,Payroll
Jefferson State CC,208539,Satterfield Jennifer,10/29/2021,8078.33,Unrestricted Shared Services,Payroll
Jefferson State CC,208540,Smith Jajuana,10/29/2021,6796,Unrestricted Shelby Campus,Payroll
Jefferson State CC,208541,Smith Veronica,10/29/2021,6125.44,Unrestricted Shared Services,Payroll
Jefferson State CC,208542,Turner Venius,10/29/2021,10186.43,Unrestricted Distance Ed,Payroll
Jefferson State CC,208543,Walker Melisa,10/29/2021,9754.89,Unrestricted Jefferson Campus,Payroll
Jefferson State CC,208544,Willis Rebecca,10/29/2021,7343.11,Unrestricted Shelby Campus,Payroll
Jefferson State CC,208545,Wilson Marjorie,10/29/2021,8181.33,Unrestricted Jefferson Campus,Payroll
Jefferson State CC,208546,Carwell Eric,10/29/2021,6460.78,Unrestricted Jefferson Campus,Payroll
Jefferson State CC,208547,Hill Candance,10/29/2021,8517.78,Unrestricted Jefferson Campus,Payroll
Jefferson State CC,208548,Sweatt Wendy,10/29/2021,8581.33,Unrestricted Jefferson Campus,Payroll
Jefferson State CC,208549,Chamberlain Cassandra,10/29/2021,6585.78,Unrestricted Shared Services,Payroll
Jefferson State CC,208550,Clark Stacy,10/29/2021,5950,Unrestricted Shelby Campus,Payroll
Jefferson State CC,208551,Edwards Beverly,10/29/2021,5497.56,Unrestricted Shared Services,Payroll
Jefferson State CC,208552,Hill Mandel,10/29/2021,5665.33,Unrestricted Shelby Campus,Payroll
Jefferson State CC,208553,Arnold Erin,10/29/2021,2665.85,Unrestricted Distance Ed,Payroll
Jefferson State CC,208553,Arnold Erin,10/29/2021,6612.48,Unrestricted Jefferson Campus,Payroll
Jefferson State CC,208554,Baccus Steven,10/29/2021,1200,Unrestricted St. Clair Campus,Payroll
Jefferson State CC,208555,Barnes Debra,10/29/2021,1200,Unrestricted St. Clair Campus,Payroll
Jefferson State CC,208556,Black Kelley,10/29/2021,8181.33,Unrestricted Chilton Campus,Payroll
Jefferson State CC,208557,Boitet Evan,10/29/2021,7104.89,Unrestricted Jefferson Campus,Payroll
Jefferson State CC,208558,Culpepper Michael,10/29/2021,1200,Unrestricted Shelby Campus,Payroll
Jefferson State CC,208559,Dodwad-Khan Zareen,10/29/2021,6840,Unrestricted Shared Services,Payroll
Jefferson State CC,208559,Dodwad-Khan Zareen,10/29/2021,600,Unrestricted Shelby Campus,Payroll
Jefferson State CC,208560,Hunsinger Ronald,10/29/2021,1200,Unrestricted St. Clair Campus,Payroll
Jefferson State CC,208561,Kin Nicholas,10/29/2021,8301.42,Unrestricted Shared Services,Payroll
Jefferson State CC,208562,Maharrey Julie,10/29/2021,2045.33,Unrestricted Distance Ed,Payroll
Jefferson State CC,208562,Maharrey Julie,10/29/2021,7336,Unrestricted Shelby Campus,Payroll
Jefferson State CC,208563,Manners Bettie,10/29/2021,1200,Unrestricted Jefferson Campus,Payroll
Jefferson State CC,208564,Miller Stephanie,10/29/2021,2039.81,Unrestricted Distance Ed,Payroll
Jefferson State CC,208564,Miller Stephanie,10/29/2021,7319.41,Unrestricted Shelby Campus,Payroll
Jefferson State CC,208565,Petty Courtney,10/29/2021,600,Unrestricted Jefferson Campus,Payroll
Jefferson State CC,208565,Petty Courtney,10/29/2021,600,Unrestricted St. Clair Campus,Payroll
Jefferson State CC,208566,Potter Rana,10/29/2021,1200,Unrestricted Chilton Campus,Payroll
Jefferson State CC,208567,Pruitt Karl,10/29/2021,600,Unrestricted Shelby Campus,Payroll
Jefferson State CC,208568,Raymond Charles,10/29/2021,1200,Unrestricted Shelby Campus,Payroll
Jefferson State CC,208569,Swindall Amanda,10/29/2021,7510.67,Unrestricted Shared Services,Payroll
Jefferson State CC,208570,Venglarik Charles,10/29/2021,9284.33,Unrestricted Jefferson Campus,Payroll
Jefferson State CC,208571,Wheeler Crystal,10/29/2021,4878.67,Unrestricted Shared Services,Payroll
Jefferson State CC,208572,Elliott Cindy,10/29/2021,1653.87,Unrestricted Distance Ed,Payroll
Jefferson State CC,208572,Elliott Cindy,10/29/2021,4471.57,Unrestricted Shelby Campus,Payroll
Jefferson State CC,208573,Naugher Leslie,10/29/2021,6662.53,Unrestricted Shared Services,Payroll
Jefferson State CC,208574,Bolton Christie,10/29/2021,6796,Unrestricted Shelby Campus,Payroll
Jefferson State CC,208575,Ferguson Lydia,10/29/2021,6796,Unrestricted Shelby Campus,Payroll
Jefferson State CC,208576,Trott David,10/29/2021,6502.5,Unrestricted Shared Services,Payroll
Jefferson State CC,208577,Campbell Michelle,10/29/2021,6838.78,Unrestricted Distance Ed,Payroll
Jefferson State CC,208578,Healy Kristianna,10/29/2021,4751.83,Unrestricted Distance Ed,Payroll
Jefferson State CC,208579,Turner-Bloch Jodi,10/29/2021,7678.33,Unrestricted Distance Ed,Payroll
Jefferson State CC,208580,Bryson Jesse,10/29/2021,1840.88,Unrestricted Distance Ed,Payroll
Jefferson State CC,208580,Bryson Jesse,10/29/2021,4547.45,Unrestricted Jefferson Campus,Payroll
Jefferson State CC,208581,Calhoun James,10/29/2021,5044.08,Unrestricted Shelby Campus,Payroll
Jefferson State CC,208582,Cartwright Darrell,10/29/2021,450,Unrestricted Shelby Campus,Payroll
Jefferson State CC,208583,Cummings Frances,10/29/2021,1730.25,Unrestricted Distance Ed,Payroll
Jefferson State CC,208583,Cummings Frances,10/29/2021,5190.75,Unrestricted Shelby Campus,Payroll
Jefferson State CC,208584,Edge Mary,10/29/2021,1350,Unrestricted Shelby Campus,Payroll
Jefferson State CC,208585,Hughes Fred,10/29/2021,4845.58,Unrestricted Shared Services,Payroll
Jefferson State CC,208585,Hughes Fred,10/29/2021,450,Unrestricted St. Clair Campus,Payroll
Jefferson State CC,208586,Todd Tiffany,10/29/2021,2795.38,Unrestricted Distance Ed,Payroll
Jefferson State CC,208586,Todd Tiffany,10/29/2021,3245.37,Unrestricted Jefferson Campus,Payroll
Jefferson State CC,208587,Ballenger Steven,10/29/2021,1350,Unrestricted Shelby Campus,Payroll
Jefferson State CC,208588,Blevins Anthony,10/29/2021,1124.46,Unrestricted Distance Ed,Payroll
Jefferson State CC,208588,Blevins Anthony,10/29/2021,5397.87,Unrestricted Shelby Campus,Payroll
Jefferson State CC,208589,Crawford Wade,10/29/2021,3876.46,Unrestricted Distance Ed,Payroll
Jefferson State CC,208589,Crawford Wade,10/29/2021,1869.12,Unrestricted Jefferson Campus,Payroll
Jefferson State CC,208590,Dobyns Linda,10/29/2021,5938.33,Unrestricted Distance Ed,Payroll
Jefferson State CC,208590,Dobyns Linda,10/29/2021,450,Unrestricted Shelby Campus,Payroll
Jefferson State CC,208591,Harris Gail,10/29/2021,330,Unrestricted Shared Services,Payroll
Jefferson State CC,208592,McGhee Benjamin,10/29/2021,450,Unrestricted Chilton Campus,Payroll
Jefferson State CC,208593,Mitchell Peasant Denedra,10/29/2021,450,Unrestricted Jefferson Campus,Payroll
Jefferson State CC,208593,Mitchell Peasant Denedra,10/29/2021,5190.75,Unrestricted Shared Services,Payroll
Jefferson State CC,208594,Qamar Ruqia,10/29/2021,1350,Unrestricted Jefferson Campus,Payroll
Jefferson State CC,208595,Raza Syed,10/29/2021,4607,Unrestricted Distance Ed,Payroll
Jefferson State CC,208595,Raza Syed,10/29/2021,1050,Unrestricted Jefferson Campus,Payroll
Jefferson State CC,208595,Raza Syed,10/29/2021,1151.75,Unrestricted Shelby Campus,Payroll
Jefferson State CC,208596,Wood John,10/29/2021,1950,Unrestricted Shelby Campus,Payroll
Jefferson State CC,208597,Fisher Justin,10/29/2021,2718.4,Unrestricted Distance Ed,Payroll
Jefferson State CC,208597,Fisher Justin,10/29/2021,4527.6,Unrestricted Shelby Campus,Payroll
Jefferson State CC,208598,Jackson Todd,10/29/2021,3165.82,Unrestricted Jefferson Campus,Payroll
Jefferson State CC,208598,Jackson Todd,10/29/2021,3569.96,Unrestricted Shelby Campus,Payroll
Jefferson State CC,208599,Mitchell Joseph,10/29/2021,1671.08,Unrestricted Jefferson Campus,Payroll
Jefferson State CC,208599,Mitchell Joseph,10/29/2021,7124.09,Unrestricted Shelby Campus,Payroll
Jefferson State CC,208600,Rinsky Glenn,10/29/2021,9187.22,Unrestricted Shelby Campus,Payroll
Jefferson State CC,208601,Cottingham Latisha,10/29/2021,1350,Unrestricted Shelby Campus,Payroll
Jefferson State CC,208602,Mitchell Geana,10/29/2021,1350,Unrestricted Shelby Campus,Payroll
Jefferson State CC,208603,Avery Camilla,10/29/2021,2408.63,Unrestricted Distance Ed,Payroll
Jefferson State CC,208603,Avery Camilla,10/29/2021,5340.26,Unrestricted Jefferson Campus,Payroll
Jefferson State CC,208604,Crain Carol,10/29/2021,1350,Unrestricted St. Clair Campus,Payroll
Jefferson State CC,208605,Griffen Tywain,10/29/2021,1500,Unrestricted Shelby Campus,Payroll
Jefferson State CC,208606,Helms David,10/29/2021,450,Unrestricted Shelby Campus,Payroll
Jefferson State CC,208607,Johnson Ana-Sky,10/29/2021,1350,Unrestricted Chilton Campus,Payroll
Jefferson State CC,208608,Jones Pamela,10/29/2021,1350,Unrestricted Shelby Campus,Payroll
Jefferson State CC,208609,Looney Yvonne,10/29/2021,900,Unrestricted Jefferson Campus,Payroll
Jefferson State CC,208610,Mayton Patrick,10/29/2021,6575.44,Unrestricted Shelby Campus,Payroll
Jefferson State CC,208611,McWhorter Kimberly,10/29/2021,1350,Unrestricted Shelby Campus,Payroll
Jefferson State CC,208612,Montgomery Margaret,10/29/2021,450,Unrestricted Jefferson Campus,Payroll
Jefferson State CC,208613,Morgan Melissa,10/29/2021,1350,Unrestricted Jefferson Campus,Payroll
Jefferson State CC,208614,Owens Alicia,10/29/2021,534.15,Unrestricted Shelby Campus,Payroll
Jefferson State CC,208615,Patrick Frank,10/29/2021,900,Unrestricted Shelby Campus,Payroll
Jefferson State CC,208616,Puckett Christina,10/29/2021,1350,Unrestricted St. Clair Campus,Payroll
Jefferson State CC,208617,Richard Mary,10/29/2021,900,Unrestricted Distance Ed,Payroll
Jefferson State CC,208617,Richard Mary,10/29/2021,600,Unrestricted St. Clair Campus,Payroll
Jefferson State CC,208618,Thompson Scott,10/29/2021,1350,Unrestricted Shelby Campus,Payroll
Jefferson State CC,208619,Waldron Edward,10/29/2021,1350,Unrestricted Shelby Campus,Payroll
Jefferson State CC,208620,Warren Germaine,10/29/2021,3839.58,Unrestricted Shared Services,Payroll
Jefferson State CC,208620,Warren Germaine,10/29/2021,450,Unrestricted St. Clair Campus,Payroll
Jefferson State CC,208621,Wright Catherine,10/29/2021,1350,Unrestricted Shelby Campus,Payroll
Jefferson State CC,208622,Lanier Mildred,10/29/2021,6838.33,Unrestricted Shelby Campus,Payroll
Jefferson State CC,208623,Thomas Michael,10/29/2021,4766.22,Unrestricted Jefferson Campus,Payroll
Jefferson State CC,208623,Thomas Michael,10/29/2021,1191.56,Unrestricted Shelby Campus,Payroll
Jefferson State CC,208624,Bland Robert,10/29/2021,5521.67,Unrestricted Shared Services,Payroll
Jefferson State CC,208625,Shepherd Leigh,10/29/2021,450,Unrestricted Distance Ed,Payroll
Jefferson State CC,208626,Boehm Matthew,10/29/2021,6585.78,Unrestricted Jefferson Campus,Payroll
Jefferson State CC,208627,Boulware Kim,10/29/2021,1350,Unrestricted Chilton Campus,Payroll
Jefferson State CC,208628,Boyer Katherine,10/29/2021,7146,Unrestricted Jefferson Campus,Payroll
Jefferson State CC,208629,Brooks Michael,10/29/2021,1350,Unrestricted Shelby Campus,Payroll
Jefferson State CC,208630,Burke Eleanna,10/29/2021,1050,Unrestricted Chilton Campus,Payroll
Jefferson State CC,208631,Burns Syreeta,10/29/2021,7960.67,Unrestricted Shelby Campus,Payroll
Jefferson State CC,208632,Carr Bethany,10/29/2021,900,Unrestricted Distance Ed,Payroll
Jefferson State CC,208633,Caskey Connie,10/29/2021,6788.33,Unrestricted Shelby Campus,Payroll
Jefferson State CC,208634,Conner Debra,10/29/2021,1350,Unrestricted Jefferson Campus,Payroll
Jefferson State CC,208635,Cornelius Kindall,10/29/2021,1200,Unrestricted Shelby Campus,Payroll
Jefferson State CC,208636,Creel Sarah,10/29/2021,5730,Unrestricted Shelby Campus,Payroll
Jefferson State CC,208637,Crumpton Eva,10/29/2021,1500,Unrestricted Shelby Campus,Payroll
Jefferson State CC,208638,Cuevas Eugene,10/29/2021,6125.44,Unrestricted Shelby Campus,Payroll
Jefferson State CC,208639,Forsythe Trisha,10/29/2021,600,Unrestricted St. Clair Campus,Payroll
Jefferson State CC,208640,Ginas Gallow Elizabeth,10/29/2021,4784.22,Unrestricted Shelby Campus,Payroll
Jefferson State CC,208641,Henderson Kristin,10/29/2021,6119.41,Unrestricted Distance Ed,Payroll
Jefferson State CC,208641,Henderson Kristin,10/29/2021,2309.81,Unrestricted Jefferson Campus,Payroll
Jefferson State CC,208642,Hurst Donald,10/29/2021,1200,Unrestricted Shelby Campus,Payroll
Jefferson State CC,208643,Hyde Dianna,10/29/2021,7396,Unrestricted Shelby Campus,Payroll
Jefferson State CC,208644,Kendrick Haley,10/29/2021,4342.58,Unrestricted Shared Services,Payroll
Jefferson State CC,208644,Kendrick Haley,10/29/2021,450,Unrestricted St. Clair Campus,Payroll
Jefferson State CC,208645,King Jamie,10/29/2021,3345.05,Unrestricted Chilton Campus,Payroll
Jefferson State CC,208645,King Jamie,10/29/2021,2895.06,Unrestricted St. Clair Campus,Payroll
Jefferson State CC,208646,Kitchens Lauren,10/29/2021,7970.17,Unrestricted Shared Services,Payroll
Jefferson State CC,208647,Kosmus Amanda,10/29/2021,1350,Unrestricted Jefferson Campus,Payroll
Jefferson State CC,208648,Lewis Erin,10/29/2021,2181.95,Unrestricted Shelby Campus,Payroll
Jefferson State CC,208648,Lewis Erin,10/29/2021,3272.94,Unrestricted St. Clair Campus,Payroll
Jefferson State CC,208649,Lucas Gail,10/29/2021,900,Unrestricted Shelby Campus,Payroll
Jefferson State CC,208650,Mathis Julie,10/29/2021,1350,Unrestricted Shelby Campus,Payroll
Jefferson State CC,208651,McKinley Robert,10/29/2021,1050,Unrestricted Shelby Campus,Payroll
Jefferson State CC,208652,Melvin Jacob,10/29/2021,1225.09,Unrestricted Distance Ed,Payroll
Jefferson State CC,208652,Melvin Jacob,10/29/2021,5800.35,Unrestricted St. Clair Campus,Payroll
Jefferson State CC,208653,Merrill John,10/29/2021,450,Unrestricted Jefferson Campus,Payroll
Jefferson State CC,208653,Merrill John,10/29/2021,6585.78,Unrestricted Shared Services,Payroll
Jefferson State CC,208654,Milton Lorrie,10/29/2021,1200,Unrestricted Shelby Campus,Payroll
Jefferson State CC,208655,Moore Walter,10/29/2021,750,Unrestricted Chilton Campus,Payroll
Jefferson State CC,208656,Moreman Sarah,10/29/2021,1350,Unrestricted Chilton Campus,Payroll
Jefferson State CC,208657,Pass Lynn,10/29/2021,450,Unrestricted Jefferson Campus,Payroll
Jefferson State CC,208658,Pelliccio Priscilla,10/29/2021,1350,Unrestricted Shelby Campus,Payroll
Jefferson State CC,208659,Phillips Allen,10/29/2021,450,Unrestricted Shelby Campus,Payroll
Jefferson State CC,208660,Rezek Thomas,10/29/2021,1350,Unrestricted Shelby Campus,Payroll
Jefferson State CC,208661,Rockett Brian,10/29/2021,6910.78,Unrestricted Shelby Campus,Payroll
Jefferson State CC,208662,Rudd Tammy,10/29/2021,1350,Unrestricted Shelby Campus,Payroll
Jefferson State CC,208663,Steed Thomas,10/29/2021,1350,Unrestricted Shelby Campus,Payroll
Jefferson State CC,208664,Taylor Mary,10/29/2021,450,Unrestricted Shelby Campus,Payroll
Jefferson State CC,208665,Thompson Kevin,10/29/2021,1350,Unrestricted Shelby Campus,Payroll
Jefferson State CC,208666,Tippit Ashley,10/29/2021,600,Unrestricted Jefferson Campus,Payroll
Jefferson State CC,208667,Torres Alayziah,10/29/2021,1350,Unrestricted Jefferson Campus,Payroll
Jefferson State CC,208668,Tubbs Lauren,10/29/2021,1950,Unrestricted Shelby Campus,Payroll
Jefferson State CC,208669,Wyatt Heather,10/29/2021,5790.11,Unrestricted Shared Services,Payroll
Jefferson State CC,208670,Youngblood Mark,10/29/2021,5097,Unrestricted Shelby Campus,Payroll
Jefferson State CC,208671,Bacani Tanja,10/29/2021,1350,Unrestricted Jefferson Campus,Payroll
Jefferson State CC,208672,Harris Daniel,10/29/2021,600,Unrestricted Jefferson Campus,Payroll
Jefferson State CC,208673,Irvin Joseph,10/29/2021,8659.22,Unrestricted Shelby Campus,Payroll
Jefferson State CC,208674,Kline David,10/29/2021,1350,Unrestricted Chilton Campus,Payroll
Jefferson State CC,208675,McRae David,10/29/2021,2684.27,Unrestricted Chilton Campus,Payroll
Jefferson State CC,208675,McRae David,10/29/2021,4926.4,Unrestricted St. Clair Campus,Payroll
Jefferson State CC,208676,Parsons Rex,10/29/2021,1350,Unrestricted Shelby Campus,Payroll
Jefferson State CC,208677,Shuffett Wendy,10/29/2021,6868.11,Unrestricted Shelby Campus,Payroll
Jefferson State CC,208678,West Pamela,10/29/2021,3150.89,Unrestricted Jefferson Campus,Payroll
Jefferson State CC,208679,Bonner Phaer,10/29/2021,5957.78,Unrestricted Jefferson Campus,Payroll
Jefferson State CC,208679,Bonner Phaer,10/29/2021,900,Unrestricted Shelby Campus,Payroll
Jefferson State CC,208680,Ford Angela,10/29/2021,1938.23,Unrestricted Distance Ed,Payroll
Jefferson State CC,208680,Ford Angela,10/29/2021,3357.35,Unrestricted Jefferson Campus,Payroll
Jefferson State CC,208681,Gasper Sarah,10/29/2021,1292.16,Unrestricted Distance Ed,Payroll
Jefferson State CC,208681,Gasper Sarah,10/29/2021,6618.62,Unrestricted St. Clair Campus,Payroll
Jefferson State CC,208682,Maximo-Medrano Jose,10/29/2021,900,Unrestricted Shelby Campus,Payroll
Jefferson State CC,208683,Pouncey Jeffrey,10/29/2021,3944.85,Unrestricted Chilton Campus,Payroll
Jefferson State CC,208683,Pouncey Jeffrey,10/29/2021,807.98,Unrestricted Distance Ed,Payroll
Jefferson State CC,208684,Triplett Stanley,10/29/2021,1050,Unrestricted Jefferson Campus,Payroll
Jefferson State CC,208684,Triplett Stanley,10/29/2021,5410.25,Unrestricted Shared Services,Payroll
Jefferson State CC,208685,Lewis Lucy,10/29/2021,5938.33,Unrestricted Distance Ed,Payroll
Jefferson State CC,208685,Lewis Lucy,10/29/2021,2579.45,Unrestricted Jefferson Campus,Payroll
Jefferson State CC,208685,Lewis Lucy,10/29/2021,450,Unrestricted St. Clair Campus,Payroll
Jefferson State CC,208686,Aldrich Summer,10/29/2021,6910.78,Unrestricted Shelby Campus,Payroll
Jefferson State CC,208687,Coleman Jamilya,10/29/2021,900,Unrestricted Shelby Campus,Payroll
Jefferson State CC,208688,Hamilton Marisa,10/29/2021,1038.15,Unrestricted Distance Ed,Payroll
Jefferson State CC,208688,Hamilton Marisa,10/29/2021,4752.6,Unrestricted Jefferson Campus,Payroll
Jefferson State CC,208689,Harrison Vernon,10/29/2021,7510.67,Unrestricted Shelby Campus,Payroll
Jefferson State CC,208689,Harrison Vernon,10/29/2021,450,Unrestricted St. Clair Campus,Payroll
Jefferson State CC,208690,Humphries Jacob,10/29/2021,450,Unrestricted Shelby Campus,Payroll
Jefferson State CC,208691,McKinney David,10/29/2021,7046,Unrestricted Shared Services,Payroll
Jefferson State CC,208691,McKinney David,10/29/2021,450,Unrestricted Shelby Campus,Payroll
Jefferson State CC,208692,Olmstead Jerrid,10/29/2021,4784.22,Unrestricted Chilton Campus,Payroll
Jefferson State CC,208693,Ralya Janice,10/29/2021,10554.89,Unrestricted Shelby Campus,Payroll
Jefferson State CC,208694,Lamb Kristen,10/29/2021,600,Unrestricted Jefferson Campus,Payroll
Jefferson State CC,208695,Lewis Breaunna,10/29/2021,600,Unrestricted Jefferson Campus,Payroll
Jefferson State CC,208696,Punjani Zeenia,10/29/2021,1200,Unrestricted Jefferson Campus,Payroll
Jefferson State CC,208697,Smith Jessica,10/29/2021,1200,Unrestricted Chilton Campus,Payroll
Jefferson State CC,208698,Witt Brittany,10/29/2021,600,Unrestricted Jefferson Campus,Payroll
Jefferson State CC,208699,Adams Vicki,10/29/2021,8698.89,Unrestricted Jefferson Campus,Payroll
Jefferson State CC,208700,Bates Susan,10/29/2021,1350,Unrestricted Jefferson Campus,Payroll
Jefferson State CC,208701,Compton Leah,10/29/2021,4562,Unrestricted Shared Services,Payroll
Jefferson State CC,208702,Cunningham Jarrod,10/29/2021,1200,Unrestricted Chilton Campus,Payroll
Jefferson State CC,208702,Cunningham Jarrod,10/29/2021,2155.34,Unrestricted Jefferson Campus,Payroll
Jefferson State CC,208702,Cunningham Jarrod,10/29/2021,2155.33,Unrestricted St. Clair Campus,Payroll
Jefferson State CC,208703,Darby Jeffrey,10/29/2021,8121,Unrestricted Shelby Campus,Payroll
Jefferson State CC,208704,Easterling Brittany,10/29/2021,1200,Unrestricted Chilton Campus,Payroll
Jefferson State CC,208705,Easterling Nanette,10/29/2021,7031.07,Unrestricted Chilton Campus,Payroll
Jefferson State CC,208705,Easterling Nanette,10/29/2021,1167.82,Unrestricted Distance Ed,Payroll
Jefferson State CC,208706,Fall Ethel,10/29/2021,9209.22,Unrestricted Jefferson Campus,Payroll
Jefferson State CC,208707,Gray Mark,10/29/2021,1350,Unrestricted Shelby Campus,Payroll
Jefferson State CC,208708,Hammett Jonathan,10/29/2021,600,Unrestricted Shelby Campus,Payroll
Jefferson State CC,208709,Hargett Yu-Ing,10/29/2021,4014.39,Unrestricted Distance Ed,Payroll
Jefferson State CC,208709,Hargett Yu-Ing,10/29/2021,4094.5,Unrestricted Shelby Campus,Payroll
Jefferson State CC,208710,Holley Jamie,10/29/2021,1843.76,Unrestricted Distance Ed,Payroll
Jefferson State CC,208710,Holley Jamie,10/29/2021,5414.02,Unrestricted Shelby Campus,Payroll
Jefferson State CC,208711,Moore Sabrina,10/29/2021,4468.33,Unrestricted Shared Services,Payroll
Jefferson State CC,208711,Moore Sabrina,10/29/2021,1050,Unrestricted St. Clair Campus,Payroll
Jefferson State CC,208712,Nagy Lisa,10/29/2021,8781.33,Unrestricted Shelby Campus,Payroll
Jefferson State CC,208713,Pate Peggy,10/29/2021,600,Unrestricted Jefferson Campus,Payroll
Jefferson State CC,208714,Shypil Olena,10/29/2021,1050,Unrestricted Jefferson Campus,Payroll
Jefferson State CC,208715,Smitherman April,10/29/2021,1200,Unrestricted Shelby Campus,Payroll
Jefferson State CC,208716,Stricklin Sharon,10/29/2021,1350,Unrestricted Jefferson Campus,Payroll
Jefferson State CC,208717,Wallace Robert,10/29/2021,4677.45,Unrestricted Distance Ed,Payroll
Jefferson State CC,208717,Wallace Robert,10/29/2021,5877.44,Unrestricted Jefferson Campus,Payroll
Jefferson State CC,208718,White Samuel,10/29/2021,7441.08,Unrestricted Jefferson Campus,Payroll
Jefferson State CC,208719,Williams Chad,10/29/2021,1350,Unrestricted Shelby Campus,Payroll
Jefferson State CC,208720,Wills Nina,10/29/2021,1350,Unrestricted Shelby Campus,Payroll
Jefferson State CC,208721,Yazdi Roya,10/29/2021,1350,Unrestricted Shelby Campus,Payroll
Jefferson State CC,208722,Dice James,10/29/2021,1200,Unrestricted Shelby Campus,Payroll
Jefferson State CC,208723,Gross Montez,10/29/2021,5955.07,AE-Federal Regular 2XX1-2XX2,Payroll
Jefferson State CC,208724,Jett Mary,10/29/2021,2827,AE-Federal Regular 2XX1-2XX2,Payroll
Jefferson State CC,208725,Rowland Adrienne,10/29/2021,4356.78,ACCS ARC Strong Initiative,Payroll
Jefferson State CC,208725,Rowland Adrienne,10/29/2021,2145.87,Unrestricted Shared Services,Payroll
Jefferson State CC,208726,Skelton Laurie,10/29/2021,3863.67,AE-Federal Regular 2XX1-2XX2,Payroll
Jefferson State CC,208727,Stanley Nathaniel,10/29/2021,3825,CAPTE-WIOA 21-22,Payroll
Jefferson State CC,208728,Wood Barbara,10/29/2021,6091.19,AE-Federal Regular 2XX1-2XX2,Payroll
Jefferson State CC,208729,Best Fred,10/29/2021,450,Unrestricted Jefferson Campus,Payroll
Jefferson State CC,208730,Carlisle Steven,10/29/2021,3997.5,Unrestricted Shared Services,Payroll
Jefferson State CC,208731,Minyard Whitney,10/29/2021,450,Unrestricted Shelby Campus,Payroll
Jefferson State CC,208732,Safavi Seyed,10/29/2021,6579.64,Unrestricted Chilton Campus,Payroll
Jefferson State CC,208733,Green Salaam,10/29/2021,450,Unrestricted Distance Ed,Payroll
Jefferson State CC,208734,Seagle Heather,10/29/2021,5268.62,Unrestricted Distance Ed,Payroll
Jefferson State CC,208734,Seagle Heather,10/29/2021,1317.16,Unrestricted Jefferson Campus,Payroll
Jefferson State CC,208735,Shackelford Cindy,10/29/2021,1137,DHR Childcare 2XX0-2XX1,Payroll
Jefferson State CC,208735,Shackelford Cindy,10/29/2021,1516.17,Unrestricted Distance Ed,Payroll
Jefferson State CC,208735,Shackelford Cindy,10/29/2021,1515.6,Unrestricted Shelby Campus,Payroll
Jefferson State CC,208735,Shackelford Cindy,10/29/2021,1516.18,Unrestricted St. Clair Campus,Payroll
Jefferson State CC,208736,Ennis Jzyk,10/29/2021,3741.96,Unrestricted Distance Ed,Payroll
Jefferson State CC,208736,Ennis Jzyk,10/29/2021,5612.93,Unrestricted Jefferson Campus,Payroll
Jefferson State CC,208737,Freind Jonathan,10/29/2021,1200,Unrestricted Jefferson Campus,Payroll
Jefferson State CC,208738,Smith Venus,10/29/2021,1814.11,Unrestricted Distance Ed,Payroll
Jefferson State CC,208738,Smith Venus,10/29/2021,5442.33,Unrestricted Jefferson Campus,Payroll
Jefferson State CC,208739,Burroughs Kelley,10/29/2021,800,Unrestricted Distance Ed,Payroll
Jefferson State CC,208739,Burroughs Kelley,10/29/2021,450,Unrestricted Jefferson Campus,Payroll
Jefferson State CC,208740,Morrow Randall,10/29/2021,400,Unrestricted Jefferson Campus,Payroll
Jefferson State CC,208741,Wilcher Donald,10/29/2021,7601.21,Unrestricted Jefferson Campus,Payroll
Jefferson State CC,208742,Scott James,10/29/2021,5158.75,Unrestricted Shared Services,Payroll
Jefferson State CC,208743,Taylor Danny,10/29/2021,6585.78,Unrestricted Jefferson Campus,Payroll
Jefferson State CC,208744,Wiley Jeffrey,10/29/2021,5268.62,Unrestricted Jefferson Campus,Payroll
Jefferson State CC,208744,Wiley Jeffrey,10/29/2021,1317.16,Unrestricted St. Clair Campus,Payroll
Jefferson State CC,208745,Bigbee Leah,10/29/2021,7805.75,Unrestricted Shared Services,Payroll
Jefferson State CC,208746,McClung Britney,10/29/2021,3468,Unrestricted Shared Services,Payroll
Jefferson State CC,208747,Rainwater Scotty,10/29/2021,3728.1,Unrestricted Shared Services,Payroll
Jefferson State CC,208748,LeBlanc Vanessa,10/29/2021,8301.42,Unrestricted Shared Services,Payroll
Jefferson State CC,208749,Hughes Kevin,10/29/2021,450,Unrestricted Distance Ed,Payroll
Jefferson State CC,208750,Coburn Danielle,10/29/2021,11085.25,Unrestricted Shared Services,Payroll
Jefferson State CC,208751,Gordon Brian,10/29/2021,9750.5,Unrestricted Shared Services,Payroll
Jefferson State CC,208752,Brown Catherine,10/29/2021,1359.2,Unrestricted Chilton Campus,Payroll
Jefferson State CC,208752,Brown Catherine,10/29/2021,5736.8,Unrestricted Shelby Campus,Payroll
Jefferson State CC,208753,Echols Danise,10/29/2021,2038.8,Unrestricted Distance Ed,Payroll
Jefferson State CC,208753,Echols Danise,10/29/2021,1050,Unrestricted Jefferson Campus,Payroll
Jefferson State CC,208753,Echols Danise,10/29/2021,3058.2,Unrestricted Shelby Campus,Payroll
Jefferson State CC,208754,Hallmark Camille,10/29/2021,1459.78,Unrestricted Distance Ed,Payroll
Jefferson State CC,208754,Hallmark Camille,10/29/2021,6889.11,Unrestricted Jefferson Campus,Payroll
Jefferson State CC,208755,Harris Liesl,10/29/2021,9288.84,Unrestricted Shared Services,Payroll
Jefferson State CC,208756,Bierley Jason,10/29/2021,6838.72,Unrestricted Shared Services,Payroll
Jefferson State CC,208757,Goodwine Deana,10/29/2021,8628.5,Unrestricted Shared Services,Payroll
Jefferson State CC,208758,Moore Kenneth,10/29/2021,6624.64,Unrestricted Shared Services,Payroll
Jefferson State CC,208759,Sykes-Bennett Latosha,10/29/2021,5169.2,Unrestricted Shared Services,Payroll
Jefferson State CC,208760,Alexander Zachary,10/29/2021,900,Unrestricted Shelby Campus,Payroll
Jefferson State CC,208760,Alexander Zachary,10/29/2021,6125.44,Unrestricted St. Clair Campus,Payroll
Jefferson State CC,208761,Culbertson Shay,10/29/2021,600,Unrestricted Distance Ed,Payroll
Jefferson State CC,208761,Culbertson Shay,10/29/2021,4845.59,Unrestricted Jefferson Campus,Payroll
Jefferson State CC,208761,Culbertson Shay,10/29/2021,1615.19,Unrestricted Shelby Campus,Payroll
Jefferson State CC,208762,Davis Alan,10/29/2021,9615.92,Unrestricted Shared Services,Payroll
Jefferson State CC,208763,Hall Melissa,10/29/2021,900,Unrestricted Jefferson Campus,Payroll
Jefferson State CC,208764,Jones LaTonya,10/29/2021,6120,Unrestricted Shared Services,Payroll
Jefferson State CC,208765,Luna Wilmer,10/29/2021,8181.33,Unrestricted Shelby Campus,Payroll
Jefferson State CC,208766,Lyons Charlotte,10/29/2021,7731.22,Unrestricted Distance Ed,Payroll
Jefferson State CC,208767,Payne Michael,10/29/2021,5302.16,Unrestricted Shared Services,Payroll
Jefferson State CC,208768,Townes Kevin,10/29/2021,8096,Unrestricted Shelby Campus,Payroll
Jefferson State CC,208769,Folds Dusty,10/29/2021,6125.44,Unrestricted Jefferson Campus,Payroll
Jefferson State CC,208770,Goss Barbara,10/29/2021,7787.5,Unrestricted Shared Services,Payroll
Jefferson State CC,208771,King Clare,10/29/2021,5957.78,Unrestricted St. Clair Campus,Payroll
Jefferson State CC,208772,Lawley Heather,10/29/2021,6460.82,Unrestricted Shared Services,Payroll
Jefferson State CC,208773,Stewart Sharon,10/29/2021,6460.78,Unrestricted Shelby Campus,Payroll
Jefferson State CC,208774,Ginn Shannon,10/29/2021,6731.86,Unrestricted Shared Services,Payroll
Jefferson State CC,208775,Lane Tiffany,10/29/2021,5520.53,Unrestricted Shared Services,Payroll
Jefferson State CC,208776,Wangle Timothy,10/29/2021,3750,Unrestricted Shared Services,Payroll
Jefferson State CC,208777,Sherman Anne,10/29/2021,6155.15,Unrestricted Shared Services,Payroll
Jefferson State CC,208778,Armstrong Toneka,10/29/2021,6194.04,Unrestricted Shared Services,Payroll
Jefferson State CC,208779,Bobo Cynthia,10/29/2021,7185.1,Unrestricted Shared Services,Payroll
Jefferson State CC,208780,Call Jacob,10/29/2021,5306.04,Unrestricted Shared Services,Payroll
Jefferson State CC,208781,Creer Reina,10/29/2021,2964,Unrestricted Shared Services,Payroll
Jefferson State CC,208782,Emmerich Julie,10/29/2021,6183,Unrestricted Shared Services,Payroll
Jefferson State CC,208783,Goodman Adam,10/29/2021,6851.87,Unrestricted Shared Services,Payroll
Jefferson State CC,208784,Guinn Philip,10/29/2021,7176.69,Unrestricted Shared Services,Payroll
Jefferson State CC,208785,Hobbs Phillip,10/29/2021,12142.67,Unrestricted Shared Services,Payroll
Jefferson State CC,208786,Johnson Kathleen,10/29/2021,4929.94,Unrestricted Shared Services,Payroll
Jefferson State CC,208787,Lindell TyAnn,10/29/2021,8535.4,Unrestricted Shared Services,Payroll
Jefferson State CC,208788,Owens Lillian,10/29/2021,34797.97,Unrestricted Shared Services,Payroll
Jefferson State CC,208789,Rigg Kimberly,10/29/2021,4801.96,Unrestricted Shared Services,Payroll
Jefferson State CC,208790,Sanford Ollena,10/29/2021,5936.72,Unrestricted Shared Services,Payroll
Jefferson State CC,208791,Spence Tracy,10/29/2021,4460.61,Unrestricted Shared Services,Payroll
Jefferson State CC,208792,Thomas Brandy,10/29/2021,4001.63,Unrestricted Shared Services,Payroll
Jefferson State CC,208793,Thompson Rodney,10/29/2021,6728.45,Unrestricted Shared Services,Payroll
Jefferson State CC,208794,Campbell Tracy,10/29/2021,4421.7,Unrestricted Shared Services,Payroll
Jefferson State CC,208795,Evans Lynn,10/29/2021,5574.65,Unrestricted Shared Services,Payroll
Jefferson State CC,208796,Payne Tamara,10/29/2021,879.52,CAPTE-WIOA 21-22,Payroll
Jefferson State CC,208796,Payne Tamara,10/29/2021,7915.65,Unrestricted Shared Services,Payroll
Jefferson State CC,208797,Wright Tierra,10/29/2021,6632.55,AE-State Regular 2XX1-2XX2,Payroll
Jefferson State CC,208798,Alzoubi Kasim,10/29/2021,8134.75,Unrestricted Shared Services,Payroll
Jefferson State CC,208799,Chandler Kimberly,10/29/2021,9641.17,Unrestricted Shared Services,Payroll
Jefferson State CC,208800,Reach Brett,10/29/2021,5635.5,Unrestricted Shared Services,Payroll
Jefferson State CC,208801,Harris Patricia,10/29/2021,7185.1,Unrestricted Shared Services,Payroll
Jefferson State CC,208802,Brown India,10/29/2021,3941.66,Unrestricted Shared Services,Payroll
Jefferson State CC,208803,Cole Ched,10/29/2021,5984.59,Unrestricted Shared Services,Payroll
Jefferson State CC,208804,Cook Paul,10/29/2021,7787.5,Unrestricted Shared Services,Payroll
Jefferson State CC,208805,Morris David,10/29/2021,11085.25,Unrestricted Shared Services,Payroll
Jefferson State CC,208806,Relihan Bruce,10/29/2021,6590.04,Unrestricted Shared Services,Payroll
Jefferson State CC,208807,White Pamela,10/29/2021,6352.85,Unrestricted Shared Services,Payroll
Jefferson State CC,208808,Holmes Elizabeth,10/29/2021,5097,Unrestricted Shelby Campus,Payroll
Jefferson State CC,208809,Boone Deborah,10/29/2021,8281.17,Unrestricted Shared Services,Payroll
Jefferson State CC,208810,Kennedy Tonja,10/29/2021,5809.03,Unrestricted Shared Services,Payroll
Jefferson State CC,208811,Kin Amanda,10/29/2021,9583.83,Unrestricted Shared Services,Payroll
Jefferson State CC,208812,Stephens Nareiko,10/29/2021,5953.51,Unrestricted Shared Services,Payroll
Jefferson State CC,208813,Bailey Mark,10/29/2021,8281.17,Unrestricted Shared Services,Payroll
Jefferson State CC,208814,Kennedy Ronphael,10/29/2021,5058.42,Unrestricted Shared Services,Payroll
Jefferson State CC,208815,Bobo David,10/29/2021,7601.21,Unrestricted Shared Services,Payroll
Jefferson State CC,208816,Creamer Kelli,10/29/2021,7030.12,Unrestricted Shared Services,Payroll
Jefferson State CC,208817,Dawkins Stephen,10/29/2021,4768.5,Unrestricted Shared Services,Payroll
Jefferson State CC,208818,Hill Damita,10/29/2021,7601.21,Unrestricted Shared Services,Payroll
Jefferson State CC,208819,Robinson Darryl,10/29/2021,10735.75,Unrestricted Shared Services,Payroll
Jefferson State CC,208820,Blair David,10/29/2021,6155.7,Unrestricted Shared Services,Payroll
Jefferson State CC,208821,Bowers Andrew,10/29/2021,4707.8,Unrestricted Shared Services,Payroll
Jefferson State CC,208822,Burton James,10/29/2021,7787.5,Unrestricted Shared Services,Payroll
Jefferson State CC,208823,Eubanks Colin,10/29/2021,10077.5,Unrestricted Shared Services,Payroll
Jefferson State CC,208824,McCallister Gregory,10/29/2021,6784.89,Unrestricted Shared Services,Payroll
Jefferson State CC,208825,McCombs Valerie,10/29/2021,6784.89,Unrestricted Shared Services,Payroll
Jefferson State CC,208826,McIntosh Linda,10/29/2021,7787.5,Unrestricted Shared Services,Payroll
Jefferson State CC,208827,Mitchell Michael,10/29/2021,4409.11,Unrestricted Shared Services,Payroll
Jefferson State CC,208828,Pardazi Behnazsadat,10/29/2021,5884.75,Unrestricted Shared Services,Payroll
Jefferson State CC,208829,Stewart James,10/29/2021,5242.37,Unrestricted Shared Services,Payroll
Jefferson State CC,208830,Tindill-Rohr Elaine,10/29/2021,6784.89,Unrestricted Shared Services,Payroll
Jefferson State CC,208831,Wangle Jonathan,10/29/2021,4156.4,Unrestricted Shared Services,Payroll
Jefferson State CC,208832,Harris Perry,10/29/2021,7523.05,Unrestricted Shared Services,Payroll
Jefferson State CC,208833,Young Reginald,10/29/2021,4074.9,Unrestricted Shared Services,Payroll
Jefferson State CC,208834,Fulmer Ann,10/29/2021,1437.36,Unrestricted Shared Services,Payroll
Jefferson State CC,600587,Ayala Heila,10/29/2021,300.42,Unrestricted Shared Services,Payroll
Jefferson State CC,600588,Hill Yvette,10/29/2021,400.56,Unrestricted Shared Services,Payroll
Jefferson State CC,600589,Bradley Nakia,10/29/2021,446.25,Unrestricted Shared Services,Payroll
Jefferson State CC,600590,Cresswell Richard,10/29/2021,7591.67,Unrestricted Shelby Campus,Payroll
Jefferson State CC,600591,Williams Dionne,10/29/2021,1350,Unrestricted Shelby Campus,Payroll
Jefferson State CC,600592,Roberson Rebecca,10/29/2021,600,Unrestricted Shelby Campus,Payroll
Jefferson State CC,600593,Safavy Ahmad,10/29/2021,600,Unrestricted Shelby Campus,Payroll
Jefferson State CC,600594,Wade Brennan,10/29/2021,450,Unrestricted Distance Ed,Payroll
Jefferson State CC,600595,Carr Kathi,10/29/2021,3336.04,Unrestricted Shared Services,Payroll
